Workbook

Sheet ENTREE
A1: Titre V : AmièsPAC
A3: Légende : | B3: A saisir
B4: Calculé automatiquement
A6: BATIMENT | J6: Données de calcul, pour information
A8: Type de logement | B8: Logements collectifs | D8: SHON | E8: 14592 | G8: Zone géographique | H8: H1a | J8: Qpr Ballon cogé - Par défaut (kWh/24h) | K8: =4.2*IF(BallonVH="NON",70,60)*POWER(IF(AND(Nbr_ballons_Cogé>1,B21>0),B21,V_Cogé),0.55)/1000 -> 19.2271019 | L8: valeur ballon de stockage Cogé(à 80°C dans une ambiance de 10°C si non habitable / 20°C sinon)
A9: Unités | B9: 170 | C9: =VLOOKUP(Type_Usage,BASES!A3:C14,3,FALSE) -> Nb logements | D9: Surface habitable SHAB | E9: 12688 | G9: Altitude (en m) | H9: 50 | J9: Qpr Ballon PAC - Par défaut (kWh/24h) | K9: =4.2*IF(BallonVH="NON",30,20)*POWER(IF(AND(Nbr_ballons_PAC>1,E21>0),E21,V_PAC),0.55)/1000 -> 8.240186529 | L9: valeur ballon de stockage PAC (à 40°C dans une ambiance de 10°C si non habitable / 20°C sinon)
A10: Nb niveaux bat | B10: 10
A12: ECS | J12: Cnn utilisés : | K12: RT2012
L13: cnn / 35 | M13: cnn Tmax/35
A14: Heures creuses (PAC 2 services) ? | B14: NON | D14: Ballon en Volume Habitable ? | E14: NON | G14: Nombre d'unité thermodynamiques Nbunités thermo | H14: 4 | J14: =INT((TMAX-35)/10) -> 1 | K14: =35+J14*10 -> 45 | L14: =POWER(Cnn55_45AirEau,J14) -> 0.8 | M14: =L14+(TMAX-K14)*(L15-L14)/(K15-K14) -> 0.72
A15: Réseau distrib collectif | B15: RESEAU BOUCLE | J15: =J14+1 -> 2 | K15: =35+J15*10 -> 55 | L15: =POWER(Cnn55_45AirEau,J15) -> 0.64
A17: Saisie du ou des ballons Cogénération | D17: Saisie du ou des ballons PAC
A18: Nombre de ballons | B18: 1 | D18: Nombre de ballons | E18: 1 | G18: Si les Qpr ne sont pas renseignés, des valeurs par défaut sont utilisées.
G19: Pour saisir un ballon équivalent, cliquez sur les boutons ci-dessous :
A20: Si ballons identiques | D20: Si ballons identiques
A21: V unitaire ballon Cogé (L) | B21: 2000 | D21: V unitaire ballon PAC (L) | E21: 2000
A22: Qpr unitaire ballon Cogé à 80°C (en kWh/24h) | D22: Qpr unitaire ballon PAC à 40°C (en kWh/24h)
A24: Si ballons différents | D24: Si ballons différents | G24: Vérification :
A25: V équivalent ballon Cogé (L) | D25: V équivalent ballon PAC (L) | G25: =_xlfn.CONCAT("Saisie ballon Cogé : ",IF(AND(B21=0,B25=0),"SAISIR UN BALLON COGE","OK")) -> Saisie ballon Cogé : OK
A26: Qpr équivalent ballon Cogé à 80°C (en kWh/24h) | D26: Qpr équivalent ballon PAC à 40°C (en kWh/24h) | G26: =_xlfn.CONCAT("Saisie ballon PAC : ",IF(AND(E21=0,E25=0),"SAISIR UN BALLON PAC","OK")) -> Saisie ballon PAC : OK
A28: SYSTÈME DE PRODUCTION ECS : POMPE A CHALEUR AIR/EAU
A30: Type | B30: AIR EXTERIEUR/EAU | D30: Débit condenseur PAC (m3/h) | E30: 14 | G30: Mode de régulation du compresseur | H30: ON/OFF
A31: Temp. stockage ECS PAC | B31: 40 | D31: Débit pour 5 K de delta T | E31: =B37/(1.163*5) -> 14.37661221
A32: Efficacité circulateurs | B32: Haute efficacité | D32: TMAX PAC à -7°C | E32: 50
B34: Valeurs selon EN14-511 | G34: Valeurs retenues
A35: T° Air | B35: PUISS. DEPART 35°C | C35: Certifié ? | D35: COP DEPART 35 | E35: COP / défaut | G35: PUISS. DEPART 35°C | H35: COP 35°C
A36: 20°C (facultatif) | C36: NON | E36: =E37*Cnn20_7AirEau -> 5 | G36: =IF(AND(C36="OUI",NOT(ISBLANK(B36))),B36,G37*Cnn20_7AirEau) -> 104.5 | H36: =IF(AND(C36="OUI",NOT(ISBLANK(D36))),D36,E36) -> 5
A37: 7°C (obligatoire) | B37: =20.9*Nb_unité_thermo -> 83.6 | C37: OUI | D37: 4 | E37: =IF(C37="OUI",D37,IF(C37="PV ESSAI",D37*CoeffPenaliteCertif,ValeurDefautPAC)) -> 4 | G37: =B37 -> 83.6 | H37: =E37 -> 4
A38: 2°C (facultatif) | C38: NON | E38: =E37*Cnn2_7AirEau -> 3.4 | G38: =IF(AND(C38="OUI",NOT(ISBLANK(B38))),B38,G$37*Cnn2_7AirEau) -> 71.06 | H38: =IF(AND(C38="OUI",NOT(ISBLANK(D38))),D38,E38) -> 3.4
A39: -7°C (facultatif) | C39: NON | E39: =E37*Cnn_7_7AirEau -> 2 | G39: =IF(AND(C39="OUI",NOT(ISBLANK(B39))),B39,G$37*Cnn_7_7AirEau) -> 41.8 | H39: =IF(AND(C39="OUI",NOT(ISBLANK(D39))),D39,E39) -> 2
A41: T° Air | B41: =CONCATENATE("PUISS. DEPART ",TMAX,"°C") -> PUISS. DEPART 50°C | C41: Certifié ? | D41: =CONCATENATE("COP DEPART ",TMAX,"°C") -> COP DEPART 50°C | E41: COP / défaut | G41: =CONCATENATE("PUISS. DEPART ",TMAX,"°C") -> PUISS. DEPART 50°C | H41: COP 40°C
A42: 20°C (facultatif) | C42: NON | E42: =E36*cnnAirEau_Tmax_35 -> 3.6 | G42: =IF(AND(C42="OUI",NOT(ISBLANK(B42))),B42,G36*cnnAirEau_Tmax_35) -> 75.24 | H42: =IF(AND(C42="OUI",NOT(ISBLANK(D42))),D42,E42) -> 3.6
A43: 7°C (facultatif) | C43: NON | E43: =E37*cnnAirEau_Tmax_35 -> 2.88 | G43: =IF(AND(C43="OUI",NOT(ISBLANK(B43))),B43,G37*cnnAirEau_Tmax_35) -> 60.192 | H43: =IF(AND(C43="OUI",NOT(ISBLANK(D43))),D43,E43) -> 2.88
A44: 2°C (facultatif) | C44: NON | E44: =E38*cnnAirEau_Tmax_35 -> 2.448 | G44: =IF(AND(C44="OUI",NOT(ISBLANK(B44))),B44,G38*cnnAirEau_Tmax_35) -> 51.1632 | H44: =IF(AND(C44="OUI",NOT(ISBLANK(D44))),D44,E44) -> 2.448
A45: -7°C (facultatif) | C45: NON | E45: =E39*cnnAirEau_Tmax_35 -> 1.44 | G45: =IF(AND(C45="OUI",NOT(ISBLANK(B45))),B45,G39*cnnAirEau_Tmax_35) -> 30.096 | H45: =IF(AND(C45="OUI",NOT(ISBLANK(D45))),D45,E45) -> 1.44
A47: ECHANGEUR | D47: Données supplémentaires si échangeur à plaques
A48: Type d'échangeur | B48: Ballon à serpentin | D48: Pcircul ECS (W) | E48: 200 | G48: Puissance nominale maxi | H48: =IF(SousTypeSelect="AIR EXTERIEUR/EAU",P20_TMAX,IF(LEFT(Captage_PACEG,9)="Nappe eau",P10_TMAX_PACEG,P5_TMAX_PACEG)) -> 75.24
A49: Surface d'échange (m2) | B49: 70 | D49: Pincement (échangeur à plaques) °C | G49: Ratio m2/kW | H49: =IF(TypeRegulation="INVERTER",B49/(0.7*H48),B49/H48) -> 0.9303561935
D50: Débit ECS (m3/h) | E50: 11 | G50: Pincement °C | H50: =IF(B48="Ballon à serpentin",MAX(-100*H49+31.5,1),IF(B48="Echangeur à plaques",IF(ISBLANK(E49),MAX(-200*H49+31.5,1),E49),3)) -> 1
A52: RECUPERATION DE CHALEUR
A54: SOURCE DE RECUPERATION DE CHALEUR | B54: Aucune
A56: Si VMC | D56: Si récupération de chaleur sur les fumées de chaudières
A57: VAmièsPAC total | B57: =4500*Nb_unité_thermo -> 18000 | D57: Déperditions par l'enveloppe HT | E57: 22117.61 | G57: Déperditions par ventilation avec perméabilité Hv | H57: 7664.847
A58: Qvarep | B58: 15300 | D58: Consommation pour le chauffage Cchauffage | E58: =85.423 -> 85.423 | G58: Rendement chaudière Rpn | H58: 0.9
A59: Rapport de dilution | B59: =IF(V_AmièsPAC_total>Qvarep,Qvarep/V_AmièsPAC_total,1) -> 0.85
A61: Caractéristiques de la cogénération
A63: Puissance nominale Pn_cogé [kW] | B63: 50 | C63: Rconv-ECS-cogé | D63: =1/(1/Rpn_cogé+(dur_ECS-dur_ECS_vac)*Qp0_cogé/Requis_ECS) -> 0.7648284112
A64: Rpn-cogé | B64: 0.77 | C64: Qp0_cogé [kW] | D64: =Qp0_30_cogé/Rpn_cogé*POWER(5/3,1.25) -> 1.402842336
A65: R élec | B65: 0.32 | C65: Qp0_30-cogé [kW] | D65: =P_nom*(2.5-0.8*LOG10(P_nom))/100 -> 0.5704119983
C66: Nbmois_cogé | D66: 12
C67: Requis ECS | D67: ='POST-TRAITEMENT & SORTIE'!C17*SHON -> 290744.1612
C68: dur_ECS | D68: =VLOOKUP(Type_Usage,BASES!A3:F14,5,FALSE) -> 1820
C69: dur_vac-ECS | D69: =VLOOKUP(Type_Usage,BASES!A3:F14,6,FALSE) -> 0
A72: DONNEES DE SORTIE | G72: Version 19/06/2020
A74: Consommation totale pour l'ECS C ECS | B74: ='POST-TRAITEMENT & SORTIE'!B21 -> 12.0358602 | C74: kWh ep /m².an
A75: Gain / cas mini-cogé seule | B75: ='POST-TRAITEMENT & SORTIE'!B23 -> 0.5917585076
B77: =IF(OR(G25="Saisie ballon Cogé : SAISIR UN BALLON COGE",G26="Saisie ballon PAC : SAISIR UN BALLON PAC"),"Attention, problème de ballon non saisi!","") -> 

Sheet Calcul (EF) (hidden)
A1: CALCUL DU BESOIN ECS | B1: ah moyen | C1: =VLOOKUP(Type_Usage,BASES!A3:D14,4,FALSE) -> 0.143 | D1: a | E1: =VLOOKUP(Type_Usage,TableUsages,2,FALSE) -> 12.80640361 | G1: Référence pour besoin ECS | I1: =IF(ENTREE!B8="Logements collectifs",SHAB,Nbr_lgt) -> 12688
B3: Volume PAC | C3: =IF(ENTREE!E21=0,ENTREE!E25,ENTREE!E21*Nbr_ballons_PAC) -> 2000
B4: Qpr PAC | C4: =IF(ENTREE!E21="",ENTREE!E26,IF(ENTREE!E22="",Qpr_PAC_défaut*Nbr_ballons_PAC,ENTREE!E22*Nbr_ballons_PAC)) -> 8.240186529
B5: Volume Cogé | C5: =IF(ENTREE!B21=0,ENTREE!B25,ENTREE!B21*Nbr_ballons_Cogé) -> 2000
B6: Qpr Cogé | C6: =IF(ENTREE!B21=0,ENTREE!B26,IF(ENTREE!B22=0,Qpr_Cogé_défaut,ENTREE!B22)*Nbr_ballons_Cogé) -> 19.2271019
A9: CALCUL AU PAS MENSUEL | B9: Mois | C9: 1 | D9: 2 | E9: 3 | F9: 4 | G9: 5 | H9: 6 | I9: 7 | J9: 8 | K9: 9 | L9: 10 | M9: 11 | N9: 12
B10: Nb de jours | C10: 31 | D10: 28 | E10: 31 | F10: 30 | G10: 31 | H10: 30 | I10: 31 | J10: 31 | K10: 30 | L10: 31 | M10: 30 | N10: 31 | O10: =SUM(C10:N10) -> 365
A12: DONNEES CLIMATIQUES | B12: Température eau froide | C12: =VLOOKUP(ZoneSelect,TableTEauFroide,2,0) -> 5.830967742 | D12: =VLOOKUP(ZoneSelect,TableTEauFroide,3,0) -> 5.865142857 | E12: =VLOOKUP(ZoneSelect,TableTEauFroide,4,0) -> 7.190903226 | F12: =VLOOKUP(ZoneSelect,TableTEauFroide,5,0) -> 9.347933333 | G12: =VLOOKUP(ZoneSelect,TableTEauFroide,6,0) -> 11.8663871 | H12: =VLOOKUP(ZoneSelect,TableTEauFroide,7,0) -> 13.9596 | I12: =VLOOKUP(ZoneSelect,TableTEauFroide,8,0) -> 15.16529032 | J12: =VLOOKUP(ZoneSelect,TableTEauFroide,9,0) -> 15.10193548 | K12: =VLOOKUP(ZoneSelect,TableTEauFroide,10,0) -> 13.81793333 | L12: =VLOOKUP(ZoneSelect,TableTEauFroide,11,0) -> 11.63219355 | M12: =VLOOKUP(ZoneSelect,TableTEauFroide,12,0) -> 9.1526 | N12: =VLOOKUP(ZoneSelect,TableTEauFroide,13,0) -> 7.030387097
B13: Température extérieure | C13: =VLOOKUP(ZoneSelect,TableTEXT,2,0) -> 3.909489247 | D13: =VLOOKUP(ZoneSelect,TableTEXT,3,0) -> 4.441145833 | E13: =VLOOKUP(ZoneSelect,TableTEXT,4,0) -> 7.545120968 | F13: =VLOOKUP(ZoneSelect,TableTEXT,5,0) -> 9.657361111 | G13: =VLOOKUP(ZoneSelect,TableTEXT,6,0) -> 13.70823925 | H13: =VLOOKUP(ZoneSelect,TableTEXT,7,0) -> 16.47444444 | I13: =VLOOKUP(ZoneSelect,TableTEXT,8,0) -> 18.9808871 | J13: =VLOOKUP(ZoneSelect,TableTEXT,9,0) -> 19.10864247 | K13: =VLOOKUP(ZoneSelect,TableTEXT,10,0) -> 15.40708333 | L13: =VLOOKUP(ZoneSelect,TableTEXT,11,0) -> 11.97630376 | M13: =VLOOKUP(ZoneSelect,TableTEXT,12,0) -> 6.955972222 | N13: =VLOOKUP(ZoneSelect,TableTEXT,13,0) -> 4.75266129
B14: qexterieur | C14: =IF(Altitude<400,C13,IF(Altitude<800,C13-2,C13-4)) -> 3.909489247 | D14: 4.441145833 | E14: 7.545120968 | F14: 9.657361111 | G14: 13.70823925 | H14: 16.47444444 | I14: 18.9808871 | J14: 19.10864247 | K14: 15.40708333 | L14: 11.97630376 | M14: 6.955972222 | N14: 4.75266129
A15: Récup VMC | B15: Tsource_amont | C15: =IF(V_AmièsPAC_total>Qvarep,BASES!$B$232*ENTREE!$B$59+(1-ENTREE!$B$59)*C14,BASES!$B$232) -> 17.58642339 | D15: =IF(V_AmièsPAC_total>Qvarep,BASES!$B$232*ENTREE!$B$59+(1-ENTREE!$B$59)*D14,BASES!$B$232) -> 17.66617187 | E15: =IF(V_AmièsPAC_total>Qvarep,BASES!$B$232*ENTREE!$B$59+(1-ENTREE!$B$59)*E14,BASES!$B$232) -> 18.13176815 | F15: =IF(V_AmièsPAC_total>Qvarep,BASES!$B$232*ENTREE!$B$59+(1-ENTREE!$B$59)*F14,BASES!$B$232) -> 18.44860417 | G15: =IF(V_AmièsPAC_total>Qvarep,BASES!$B$232*ENTREE!$B$59+(1-ENTREE!$B$59)*G14,BASES!$B$232) -> 19.05623589 | H15: =IF(V_AmièsPAC_total>Qvarep,BASES!$B$232*ENTREE!$B$59+(1-ENTREE!$B$59)*H14,BASES!$B$232) -> 19.47116667 | I15: =I14 -> 18.9808871 | J15: 19.10864247 | K15: =IF(V_AmièsPAC_total>Qvarep,BASES!$B$232*ENTREE!$B$59+(1-ENTREE!$B$59)*K14,BASES!$B$232) -> 19.3110625 | L15: =IF(V_AmièsPAC_total>Qvarep,BASES!$B$232*ENTREE!$B$59+(1-ENTREE!$B$59)*L14,BASES!$B$232) -> 18.79644556 | M15: =IF(V_AmièsPAC_total>Qvarep,BASES!$B$232*ENTREE!$B$59+(1-ENTREE!$B$59)*M14,BASES!$B$232) -> 18.04339583 | N15: =IF(V_AmièsPAC_total>Qvarep,BASES!$B$232*ENTREE!$B$59+(1-ENTREE!$B$59)*N14,BASES!$B$232) -> 17.71289919
A16: Récup Fumées | B16: Besoin mensuel (kWh) | C16: =(Ht+Hv)*(20-C14)*C10*24/1000 -> 356535.9188 | D16: 311391.9683 | E16: 275977.053 | F16: 221781.0225 | G16: 139413.766 | H16: 75599.78885 | I16: 22581.65455 | J16: 19750.83201 | K16: 98487.60705 | L16: 177790.2488 | M16: 279707.9014 | N16: 337852.7879
C17: =C16/SUM($C$16:$N$16) -> 0.1538868535 | D17: =D16/SUM($C$16:$N$16) -> 0.134401971 | E17: 0.1191163024 | F17: 0.09572439109 | G17: 0.06017330836 | H17: 0.03263013071 | I17: 0.009746619014 | J17: 0.008524788757 | K17: 0.04250889507 | L17: 0.07673723888 | M17: 0.1207265989 | N17: 0.1458229024
B18: P_enfournée (kW) | C18: =C17*C_chauffage*SHON/(24*C10)*PCS_gaz/PCI_gaz -> 290.6804965 | D18: 281.0759412 | E18: 225.0015849 | F18: 186.8432552 | G18: 113.6627772 | H18: 63.69034862 | I18: 18.41061786 | J18: 16.10267396 | K18: 82.97258661 | L18: 144.9507751 | M18: 235.6447554 | N18: 275.4483095
B19: Volume_gaz_nat (Nm3 PCS) | C19: =C18/PCS_gaz -> 25.27656491 | D19: =D18/PCS_gaz -> 24.44138619 | E19: 19.56535521 | F19: 16.24723959 | G19: 9.883719761 | H19: 5.538291185 | I19: 1.600923293 | J19: 1.400232518 | K19: 7.215007532 | L19: 12.60441523 | M19: 20.4908483 | N19: 23.95202692
B20: Chaleur_récupérable (kWh) | C20: =C19*(PCS_gaz-PCI_gaz)*Rpn -> 29.57358095 | D20: 28.59642184 | E20: 22.89146559 | F20: 19.00927032 | G20: 11.56395212 | H20: 6.479800686 | I20: 1.873080252 | J20: 1.638272046 | K20: 8.441558812 | L20: 14.74716582 | M20: 23.97429251 | N20: 28.02387149
C21: =C20*1000/(V_AmièsPAC_total*0.34) -> 4.832284469 | D21: =D20*1000/(V_AmièsPAC_total*0.34) -> 4.672617948 | E21: 3.740435554 | F21: 3.106089921 | G21: 1.88953466 | H21: 1.058790962 | I21: 0.3060588647 | J21: 0.2676915108 | K21: 1.379339675 | L21: 2.409667617 | M21: 3.917368057 | N21: 4.579063969
B22: Température source amont | C22: =C21+C14 -> 8.741773716 | D22: 9.113763782 | E22: 11.28555652 | F22: 12.76345103 | G22: 15.59777391 | H22: =H13 -> 16.47444444 | I22: =I13 -> 18.9808871 | J22: 19.10864247 | K22: 16.78642301 | L22: 14.38597138 | M22: 10.87334028 | N22: 9.33172526
B23: θamont | C23: =IF(Source_récup="Aucune",'Calcul (EF)'!C14,IF(Source_récup="VMC",'Calcul (EF)'!C15,'Calcul (EF)'!C22)) -> 3.909489247 | D23: =IF(Source_récup="Aucune",'Calcul (EF)'!D14,IF(Source_récup="VMC",'Calcul (EF)'!D15,'Calcul (EF)'!D22)) -> 4.441145833 | E23: =IF(Source_récup="Aucune",'Calcul (EF)'!E14,IF(Source_récup="VMC",'Calcul (EF)'!E15,'Calcul (EF)'!E22)) -> 7.545120968 | F23: =IF(Source_récup="Aucune",'Calcul (EF)'!F14,IF(Source_récup="VMC",'Calcul (EF)'!F15,'Calcul (EF)'!F22)) -> 9.657361111 | G23: =IF(Source_récup="Aucune",'Calcul (EF)'!G14,IF(Source_récup="VMC",'Calcul (EF)'!G15,'Calcul (EF)'!G22)) -> 13.70823925 | H23: =IF(Source_récup="Aucune",'Calcul (EF)'!H14,IF(Source_récup="VMC",'Calcul (EF)'!H15,'Calcul (EF)'!H22)) -> 16.47444444 | I23: =IF(Source_récup="Aucune",'Calcul (EF)'!I14,IF(Source_récup="VMC",'Calcul (EF)'!I15,'Calcul (EF)'!I22)) -> 18.9808871 | J23: =IF(Source_récup="Aucune",'Calcul (EF)'!J14,IF(Source_récup="VMC",'Calcul (EF)'!J15,'Calcul (EF)'!J22)) -> 19.10864247 | K23: =IF(Source_récup="Aucune",'Calcul (EF)'!K14,IF(Source_récup="VMC",'Calcul (EF)'!K15,'Calcul (EF)'!K22)) -> 15.40708333 | L23: =IF(Source_récup="Aucune",'Calcul (EF)'!L14,IF(Source_récup="VMC",'Calcul (EF)'!L15,'Calcul (EF)'!L22)) -> 11.97630376 | M23: =IF(Source_récup="Aucune",'Calcul (EF)'!M14,IF(Source_récup="VMC",'Calcul (EF)'!M15,'Calcul (EF)'!M22)) -> 6.955972222 | N23: =IF(Source_récup="Aucune",'Calcul (EF)'!N14,IF(Source_récup="VMC",'Calcul (EF)'!N15,'Calcul (EF)'!N22)) -> 4.75266129
A26: BESOIN ECS MENSUEL | B26: Vuw mensuel (L) | C26: =ah*a*Ref_Besoin*C10 -> 720307.7483 | D26: 650600.5468 | E26: 720307.7483 | F26: 697072.0145 | G26: 720307.7483 | H26: 697072.0145 | I26: 720307.7483 | J26: 720307.7483 | K26: 697072.0145 | L26: 720307.7483 | M26: 697072.0145 | N26: 720307.7483
B27: BESOIN MENSUEL en kWh/m2 | C27: =MasseVolumiqueEau*CpEau*(TEauMitigee-'Calcul (EF)'!C12)*'Calcul (EF)'!C26/SHON -> 1.961623515 | D27: =MasseVolumiqueEau*CpEau*(TEauMitigee-'Calcul (EF)'!D12)*'Calcul (EF)'!D26/SHON -> 1.770016877 | E27: =MasseVolumiqueEau*CpEau*(TEauMitigee-'Calcul (EF)'!E12)*'Calcul (EF)'!E26/SHON -> 1.88355044 | F27: =MasseVolumiqueEau*CpEau*(TEauMitigee-'Calcul (EF)'!F12)*'Calcul (EF)'!F26/SHON -> 1.702951591 | G27: =MasseVolumiqueEau*CpEau*(TEauMitigee-'Calcul (EF)'!G12)*'Calcul (EF)'!G26/SHON -> 1.615133733 | H27: =MasseVolumiqueEau*CpEau*(TEauMitigee-'Calcul (EF)'!H12)*'Calcul (EF)'!H26/SHON -> 1.446739011 | I27: =MasseVolumiqueEau*CpEau*(TEauMitigee-'Calcul (EF)'!I12)*'Calcul (EF)'!I26/SHON -> 1.425745691 | J27: =MasseVolumiqueEau*CpEau*(TEauMitigee-'Calcul (EF)'!J12)*'Calcul (EF)'!J26/SHON -> 1.429382854 | K27: =MasseVolumiqueEau*CpEau*(TEauMitigee-'Calcul (EF)'!K12)*'Calcul (EF)'!K26/SHON -> 1.454609654 | L27: =MasseVolumiqueEau*CpEau*(TEauMitigee-'Calcul (EF)'!L12)*'Calcul (EF)'!L26/SHON -> 1.628578644 | M27: =MasseVolumiqueEau*CpEau*(TEauMitigee-'Calcul (EF)'!M12)*'Calcul (EF)'!M26/SHON -> 1.713803818 | N27: =MasseVolumiqueEau*CpEau*(TEauMitigee-'Calcul (EF)'!N12)*'Calcul (EF)'!N26/SHON -> 1.892765574
B28: Besoin à la PAC pour préchauffage à 40°C | C28: =MasseVolumiqueEau*CpEau*(T_ECS-'Calcul (EF)'!C12)*'Calcul (EF)'!C26/SHON -> 1.961623515 | D28: =MasseVolumiqueEau*CpEau*(T_ECS-'Calcul (EF)'!D12)*'Calcul (EF)'!D26/SHON -> 1.770016877 | E28: =MasseVolumiqueEau*CpEau*(T_ECS-'Calcul (EF)'!E12)*'Calcul (EF)'!E26/SHON -> 1.88355044 | F28: =MasseVolumiqueEau*CpEau*(T_ECS-'Calcul (EF)'!F12)*'Calcul (EF)'!F26/SHON -> 1.702951591 | G28: =MasseVolumiqueEau*CpEau*(T_ECS-'Calcul (EF)'!G12)*'Calcul (EF)'!G26/SHON -> 1.615133733 | H28: =MasseVolumiqueEau*CpEau*(T_ECS-'Calcul (EF)'!H12)*'Calcul (EF)'!H26/SHON -> 1.446739011 | I28: =MasseVolumiqueEau*CpEau*(T_ECS-'Calcul (EF)'!I12)*'Calcul (EF)'!I26/SHON -> 1.425745691 | J28: =MasseVolumiqueEau*CpEau*(T_ECS-'Calcul (EF)'!J12)*'Calcul (EF)'!J26/SHON -> 1.429382854 | K28: =MasseVolumiqueEau*CpEau*(T_ECS-'Calcul (EF)'!K12)*'Calcul (EF)'!K26/SHON -> 1.454609654 | L28: =MasseVolumiqueEau*CpEau*(T_ECS-'Calcul (EF)'!L12)*'Calcul (EF)'!L26/SHON -> 1.628578644 | M28: =MasseVolumiqueEau*CpEau*(T_ECS-'Calcul (EF)'!M12)*'Calcul (EF)'!M26/SHON -> 1.713803818 | N28: =MasseVolumiqueEau*CpEau*(T_ECS-'Calcul (EF)'!N12)*'Calcul (EF)'!N26/SHON -> 1.892765574
A30: BESOIN ECS QUOTIDIEN | B30: Vuw quotidien (L à 40°C) | C30: =C26/C10 -> 23235.73382 | D30: 23235.73382 | E30: 23235.73382 | F30: 23235.73382 | G30: 23235.73382 | H30: 23235.73382 | I30: 23235.73382 | J30: 23235.73382 | K30: 23235.73382 | L30: 23235.73382 | M30: 23235.73382 | N30: 23235.73382
B31: Besoin quotidien (kWh) | C31: =C27*SHON/C10 -> 923.355172 | D31: 922.4316525 | E31: 886.60542 | F31: 828.3156537 | G31: 760.2590786 | H31: 703.6938547 | I31: 671.1122941 | J31: 672.824342 | K31: 707.5221355 | L31: 766.587728 | M31: 833.5941773 | N31: 890.9430728
B32: Volume prélevé L | C32: =C30*(40-C12)/(T_ECS-C12) -> 23235.73382 | D32: 23235.73382 | E32: 23235.73382 | F32: 23235.73382 | G32: 23235.73382 | H32: 23235.73382 | I32: 23235.73382 | J32: 23235.73382 | K32: 23235.73382 | L32: 23235.73382 | M32: 23235.73382 | N32: 23235.73382
B33: Volume prélevé L / clé | C33: =C32/5 -> 4647.146763 | D33: =D32/5 -> 4647.146763 | E33: 4647.146763 | F33: 4647.146763 | G33: 4647.146763 | H33: 4647.146763 | I33: 4647.146763 | J33: 4647.146763 | K33: 4647.146763 | L33: 4647.146763 | M33: 4647.146763 | N33: 4647.146763
B34: T° d'eau froide moyenne dans l'échangeur / puisage | C34: =IF(TypeEchangeur="Ballon à serpentin",('Calcul (EF)'!C33*'Calcul (EF)'!C$12+(SurfaceEchangeur*VEchangem2-'Calcul (EF)'!C33)*T_ECS)/(SurfaceEchangeur*VEchangem2),(C33*C$12+(V_PAC*Nbr_ballons_PAC-C33)*T_ECS)/(V_PAC*Nbr_ballons_PAC)) -> 2.193212462 | D34: =IF(TypeEchangeur="Ballon à serpentin",('Calcul (EF)'!D33*'Calcul (EF)'!D$12+(SurfaceEchangeur*VEchangem2-'Calcul (EF)'!D33)*T_ECS)/(SurfaceEchangeur*VEchangem2),(D33*D$12+(V_PAC*Nbr_ballons_PAC-D33)*T_ECS)/(V_PAC*Nbr_ballons_PAC)) -> 2.23102598 | E34: =IF(TypeEchangeur="Ballon à serpentin",('Calcul (EF)'!E33*'Calcul (EF)'!E$12+(SurfaceEchangeur*VEchangem2-'Calcul (EF)'!E33)*T_ECS)/(SurfaceEchangeur*VEchangem2),(E33*E$12+(V_PAC*Nbr_ballons_PAC-E33)*T_ECS)/(V_PAC*Nbr_ballons_PAC)) -> 3.697931458 | F34: =IF(TypeEchangeur="Ballon à serpentin",('Calcul (EF)'!F33*'Calcul (EF)'!F$12+(SurfaceEchangeur*VEchangem2-'Calcul (EF)'!F33)*T_ECS)/(SurfaceEchangeur*VEchangem2),(F33*F$12+(V_PAC*Nbr_ballons_PAC-F33)*T_ECS)/(V_PAC*Nbr_ballons_PAC)) -> 6.084606573 | G34: =IF(TypeEchangeur="Ballon à serpentin",('Calcul (EF)'!G33*'Calcul (EF)'!G$12+(SurfaceEchangeur*VEchangem2-'Calcul (EF)'!G33)*T_ECS)/(SurfaceEchangeur*VEchangem2),(G33*G$12+(V_PAC*Nbr_ballons_PAC-G33)*T_ECS)/(V_PAC*Nbr_ballons_PAC)) -> 8.871183776 | H34: =IF(TypeEchangeur="Ballon à serpentin",('Calcul (EF)'!H33*'Calcul (EF)'!H$12+(SurfaceEchangeur*VEchangem2-'Calcul (EF)'!H33)*T_ECS)/(SurfaceEchangeur*VEchangem2),(H33*H$12+(V_PAC*Nbr_ballons_PAC-H33)*T_ECS)/(V_PAC*Nbr_ballons_PAC)) -> 11.18724748 | I34: =IF(TypeEchangeur="Ballon à serpentin",('Calcul (EF)'!I33*'Calcul (EF)'!I$12+(SurfaceEchangeur*VEchangem2-'Calcul (EF)'!I33)*T_ECS)/(SurfaceEchangeur*VEchangem2),(I33*I$12+(V_PAC*Nbr_ballons_PAC-I33)*T_ECS)/(V_PAC*Nbr_ballons_PAC)) -> 12.52129984 | J34: =IF(TypeEchangeur="Ballon à serpentin",('Calcul (EF)'!J33*'Calcul (EF)'!J$12+(SurfaceEchangeur*VEchangem2-'Calcul (EF)'!J33)*T_ECS)/(SurfaceEchangeur*VEchangem2),(J33*J$12+(V_PAC*Nbr_ballons_PAC-J33)*T_ECS)/(V_PAC*Nbr_ballons_PAC)) -> 12.45120002 | K34: =IF(TypeEchangeur="Ballon à serpentin",('Calcul (EF)'!K33*'Calcul (EF)'!K$12+(SurfaceEchangeur*VEchangem2-'Calcul (EF)'!K33)*T_ECS)/(SurfaceEchangeur*VEchangem2),(K33*K$12+(V_PAC*Nbr_ballons_PAC-K33)*T_ECS)/(V_PAC*Nbr_ballons_PAC)) -> 11.03049848 | L34: =IF(TypeEchangeur="Ballon à serpentin",('Calcul (EF)'!L33*'Calcul (EF)'!L$12+(SurfaceEchangeur*VEchangem2-'Calcul (EF)'!L33)*T_ECS)/(SurfaceEchangeur*VEchangem2),(L33*L$12+(V_PAC*Nbr_ballons_PAC-L33)*T_ECS)/(V_PAC*Nbr_ballons_PAC)) -> 8.61205716 | M34: =IF(TypeEchangeur="Ballon à serpentin",('Calcul (EF)'!M33*'Calcul (EF)'!M$12+(SurfaceEchangeur*VEchangem2-'Calcul (EF)'!M33)*T_ECS)/(SurfaceEchangeur*VEchangem2),(M33*M$12+(V_PAC*Nbr_ballons_PAC-M33)*T_ECS)/(V_PAC*Nbr_ballons_PAC)) -> 5.868477366 | N34: =IF(TypeEchangeur="Ballon à serpentin",('Calcul (EF)'!N33*'Calcul (EF)'!N$12+(SurfaceEchangeur*VEchangem2-'Calcul (EF)'!N33)*T_ECS)/(SurfaceEchangeur*VEchangem2),(N33*N$12+(V_PAC*Nbr_ballons_PAC-N33)*T_ECS)/(V_PAC*Nbr_ballons_PAC)) -> 3.520326218
B35: T° d'eau froide moyenne dans l'échangeur / V quotidien | C35: =IF(TypeEchangeur="Ballon à serpentin",('Calcul (EF)'!C32*'Calcul (EF)'!C$12+(SurfaceEchangeur*VEchangem2-'Calcul (EF)'!C32)*T_ECS)/(SurfaceEchangeur*VEchangem2),(C32*C$12+(V_PAC*Nbr_ballons_PAC-C32)*T_ECS)/(V_PAC*Nbr_ballons_PAC)) -> -149.0339377 | D35: =IF(TypeEchangeur="Ballon à serpentin",('Calcul (EF)'!D32*'Calcul (EF)'!D$12+(SurfaceEchangeur*VEchangem2-'Calcul (EF)'!D32)*T_ECS)/(SurfaceEchangeur*VEchangem2),(D32*D$12+(V_PAC*Nbr_ballons_PAC-D32)*T_ECS)/(V_PAC*Nbr_ballons_PAC)) -> -148.8448701 | E35: =IF(TypeEchangeur="Ballon à serpentin",('Calcul (EF)'!E32*'Calcul (EF)'!E$12+(SurfaceEchangeur*VEchangem2-'Calcul (EF)'!E32)*T_ECS)/(SurfaceEchangeur*VEchangem2),(E32*E$12+(V_PAC*Nbr_ballons_PAC-E32)*T_ECS)/(V_PAC*Nbr_ballons_PAC)) -> -141.5103427 | F35: =IF(TypeEchangeur="Ballon à serpentin",('Calcul (EF)'!F32*'Calcul (EF)'!F$12+(SurfaceEchangeur*VEchangem2-'Calcul (EF)'!F32)*T_ECS)/(SurfaceEchangeur*VEchangem2),(F32*F$12+(V_PAC*Nbr_ballons_PAC-F32)*T_ECS)/(V_PAC*Nbr_ballons_PAC)) -> -129.5769671 | G35: =IF(TypeEchangeur="Ballon à serpentin",('Calcul (EF)'!G32*'Calcul (EF)'!G$12+(SurfaceEchangeur*VEchangem2-'Calcul (EF)'!G32)*T_ECS)/(SurfaceEchangeur*VEchangem2),(G32*G$12+(V_PAC*Nbr_ballons_PAC-G32)*T_ECS)/(V_PAC*Nbr_ballons_PAC)) -> -115.6440811 | H35: =IF(TypeEchangeur="Ballon à serpentin",('Calcul (EF)'!H32*'Calcul (EF)'!H$12+(SurfaceEchangeur*VEchangem2-'Calcul (EF)'!H32)*T_ECS)/(SurfaceEchangeur*VEchangem2),(H32*H$12+(V_PAC*Nbr_ballons_PAC-H32)*T_ECS)/(V_PAC*Nbr_ballons_PAC)) -> -104.0637626 | I35: =IF(TypeEchangeur="Ballon à serpentin",('Calcul (EF)'!I32*'Calcul (EF)'!I$12+(SurfaceEchangeur*VEchangem2-'Calcul (EF)'!I32)*T_ECS)/(SurfaceEchangeur*VEchangem2),(I32*I$12+(V_PAC*Nbr_ballons_PAC-I32)*T_ECS)/(V_PAC*Nbr_ballons_PAC)) -> -97.39350082 | J35: =IF(TypeEchangeur="Ballon à serpentin",('Calcul (EF)'!J32*'Calcul (EF)'!J$12+(SurfaceEchangeur*VEchangem2-'Calcul (EF)'!J32)*T_ECS)/(SurfaceEchangeur*VEchangem2),(J32*J$12+(V_PAC*Nbr_ballons_PAC-J32)*T_ECS)/(V_PAC*Nbr_ballons_PAC)) -> -97.74399991 | K35: =IF(TypeEchangeur="Ballon à serpentin",('Calcul (EF)'!K32*'Calcul (EF)'!K$12+(SurfaceEchangeur*VEchangem2-'Calcul (EF)'!K32)*T_ECS)/(SurfaceEchangeur*VEchangem2),(K32*K$12+(V_PAC*Nbr_ballons_PAC-K32)*T_ECS)/(V_PAC*Nbr_ballons_PAC)) -> -104.8475076 | L35: =IF(TypeEchangeur="Ballon à serpentin",('Calcul (EF)'!L32*'Calcul (EF)'!L$12+(SurfaceEchangeur*VEchangem2-'Calcul (EF)'!L32)*T_ECS)/(SurfaceEchangeur*VEchangem2),(L32*L$12+(V_PAC*Nbr_ballons_PAC-L32)*T_ECS)/(V_PAC*Nbr_ballons_PAC)) -> -116.9397142 | M35: =IF(TypeEchangeur="Ballon à serpentin",('Calcul (EF)'!M32*'Calcul (EF)'!M$12+(SurfaceEchangeur*VEchangem2-'Calcul (EF)'!M32)*T_ECS)/(SurfaceEchangeur*VEchangem2),(M32*M$12+(V_PAC*Nbr_ballons_PAC-M32)*T_ECS)/(V_PAC*Nbr_ballons_PAC)) -> -130.6576132 | N35: =IF(TypeEchangeur="Ballon à serpentin",('Calcul (EF)'!N32*'Calcul (EF)'!N$12+(SurfaceEchangeur*VEchangem2-'Calcul (EF)'!N32)*T_ECS)/(SurfaceEchangeur*VEchangem2),(N32*N$12+(V_PAC*Nbr_ballons_PAC-N32)*T_ECS)/(V_PAC*Nbr_ballons_PAC)) -> -142.3983689
A37: PERTES DE DISTRIBUTION | B37: Mensuel, en kWh/m2 | O37: Total
A38: Collectif, volume chauffé | B38: Qd,w_col,vc | C38: =0.8*0.14*C27 -> 0.2197018337 | D38: =0.8*0.14*D27 -> 0.1982418902 | E38: 0.2109576493 | F38: 0.1907305781 | G38: 0.1808949781 | H38: 0.1620347692 | I38: 0.1596835174 | J38: 0.1600908796 | K38: 0.1629162812 | L38: 0.1824008081 | M38: 0.1919460277 | N38: 0.2119897443 | O38: =SUM(C38:N38) -> 2.231588957
A39: Collectif, hors volume chauffé | B39: Qd,w_col,hvc | C39: =0.2*0.14*C27 -> 0.05492545842 | D39: =0.2*0.14*D27 -> 0.04956047256 | E39: 0.05273941232 | F39: 0.04768264454 | G39: 0.04522374453 | H39: 0.04050869229 | I39: 0.03992087934 | J39: 0.0400227199 | K39: 0.0407290703 | L39: 0.04560020202 | M39: 0.04798650692 | N39: 0.05299743607 | O39: =SUM(C39:N39) -> 0.5578972392
B40: PERTES DE DISTRIBUTION réseau bouclé en kWh/m2 | C40: =C38+C39 -> 0.2746272921 | D40: 0.2478023628 | E40: 0.2636970616 | F40: 0.2384132227 | G40: 0.2261187227 | H40: 0.2025434615 | I40: 0.1996043967 | J40: 0.2001135995 | K40: 0.2036453515 | L40: 0.2280010101 | M40: 0.2399325346 | N40: 0.2649871804 | O40: 2.789486196
A42: PERTES DE STOCKAGE | B42: PERTES DE STOCKAGE BALLON préchauffage en kWh/m2 (T ECS) | C42: =Qpr_ballon_PAC*(T_ballon_PAC-T_int)/45*C10/SHON -> 0.007780390546 | D42: 0.007027449525 | E42: 0.007780390546 | F42: 0.007529410206 | G42: 0.007780390546 | H42: 0.007529410206 | I42: 0.007780390546 | J42: 0.007780390546 | K42: 0.007529410206 | L42: 0.007780390546 | M42: 0.007529410206 | N42: 0.007780390546 | O42: 0.09160782417
B43: PERTES DE STOCKAGE BALLON cogé en kWh/m2 (T ECS) | C43: =Qpr_ballonCogé*(T_ballon_cogé-T_int)/45*C10/SHON -> 0.05446273382 | D43: 0.04919214668 | E43: 0.05446273382 | F43: 0.05270587144 | G43: 0.05446273382 | H43: 0.05270587144 | I43: 0.05446273382 | J43: 0.05446273382 | K43: 0.05270587144 | L43: 0.05446273382 | M43: 0.05270587144 | N43: 0.05446273382 | O43: 0.6412547692
A45: BESOIN TOTAL | B45: Besoin total kWh/m2 | C45: =C$42+C$28+C43+C40 -> 2.298493932 | D45: 2.074038836 | E45: 2.209490626 | F45: 2.001600095 | G45: 1.90349558 | H45: 1.709517754 | I45: 1.687593212 | J45: 1.691739578 | K45: 1.718490287 | L45: 1.918822778 | M45: 2.013971635 | N45: 2.219995879 | O45: =SUM(C45:N45) -> 23.44725019
A48: PAC AIR/EAU | B48: Besoin total PAC kWh/m2 | C48: =C$42+C$28 -> 1.969403906 | D48: 1.777044327 | E48: 1.891330831 | F48: 1.710481001 | G48: 1.622914124 | H48: 1.454268421 | I48: 1.433526081 | J48: 1.437163244 | K48: 1.462139064 | L48: 1.636359034 | M48: 1.721333229 | N48: 1.900545965 | O48: =SUM(C48:N48) -> 20.01650922
B49: Puissance départ à 35°C pour θ source amont | C49: =IF(C$23>20,P20_35,IF(C$23>7,P7_35+(P20_35-P7_35)/13*(C$23-7),IF(C$23>2,P2_35+(P7_35-P2_35)/5*(C$23-2),P_7_35+(P2_35-P_7_35)/9*(C$23+7)))) -> 75.84899903 | D49: 77.18239375 | E49: 84.47638679 | F49: 87.87221902 | G49: 94.38478464 | H49: 98.83199145 | I49: 102.86158 | J49: 103.0669714 | K49: 97.11600321 | L49: 91.60036528 | M49: 83.48957833 | N49: 77.96367452
B50: COP départ à 35°C pour θ source amont | C50: =IF(C$23>20,COP20_35,IF(C$23>7,COP7_35+(COP20_35-COP7_35)/13*(C$23-7),IF(C$23>2,COP2_35+(COP7_35-COP2_35)/5*(C$23-2),COP_7_35+(COP2_35-COP_7_35)/9*(C$23+7)))) -> 3.62913871 | D50: 3.6929375 | E50: 4.041932382 | F50: 4.204412393 | G50: 4.516018404 | H50: 4.728803419 | I50: 4.9216067 | J50: 4.931434036 | K50: 4.646698718 | L50: 4.382792597 | M50: 3.994716667 | N50: 3.730319355
B51: Puissance départ à Tmax pour θ source amont | C51: =IF(C$23>20,P20_TMAX,IF(C$23>7,P7_TMAX+(P20_TMAX-P7_TMAX)/13*(C$23-7),IF(C$23>2,P2_TMAX+(P7_TMAX-P2_TMAX)/5*(C$23-2),P_7_TMAX+(P2_TMAX-P_7_TMAX)/9*(C$23+7)))) -> 54.6112793 | D51: 55.5713235 | E51: 60.82299849 | F51: 63.26799769 | G51: 67.95704494 | H51: 71.15903385 | I51: 74.06033762 | J51: 74.20821938 | K51: 69.92352231 | L51: 65.952263 | M51: 60.1124964 | N51: 56.13384565
B52: COP départ à Tmax pour θ source amont | C52: =IF(C$23>20,COP20_TMAX,IF(C$23>7,COP7_TMAX+(COP20_TMAX-COP7_TMAX)/13*(C$23-7),IF(C$23>2,COP2_TMAX+(COP7_TMAX-COP2_TMAX)/5*(C$23-2),COP_7_TMAX+(COP2_TMAX-COP_7_TMAX)/9*(C$23+7)))) -> 2.612979871 | D52: 2.658915 | E52: 2.910191315 | F52: 3.027176923 | G52: 3.251533251 | H52: 3.404738462 | I52: 3.543556824 | J52: 3.550632506 | K52: 3.345623077 | L52: 3.15561067 | M52: 2.876196 | N52: 2.685829935
B54: Puissance nécessaire pour besoins sur Tps max (W): | C54: =(C$42+C$27)*SHON/C$10*1000/TpsFonctMax -> 77251.45643 | D54: 77174.49647 | E54: 74188.97709 | F54: 69331.49657 | G54: 63660.11531 | H54: 58946.34665 | I54: 56231.2166 | J54: 56373.88726 | K54: 59265.37005 | L54: 64187.50276 | M54: 69771.37353 | N54: 74550.44816
B55: Puissance moyenne pour θ source amont | C55: =(C49+C51)/2*1000 -> 65230.13917 | D55: =(D49+D51)/2*1000 -> 66376.85862 | E55: =(E49+E51)/2*1000 -> 72649.69264 | F55: 75570.10835 | G55: 81170.91479 | H55: 84995.51265 | I55: 88460.95882 | J55: 88637.59537 | K55: 83519.76276 | L55: 78776.31414 | M55: 71801.03737 | N55: 67048.76008
B56: Part assurée par la PAC : | C56: =IF(C55>C54,1,C55/C54) -> 0.8443871764 | D56: =IF(D55>D54,1,D55/D54) -> 0.860088004 | E56: =IF(E55>E54,1,E55/E54) -> 0.9792518442 | F56: 1 | G56: 1 | H56: 1 | I56: 1 | J56: 1 | K56: 1 | L56: 1 | M56: 1 | N56: 0.8993743396
B57: Appoint si puissance insuffisante kWh/m2 | C57: =IF(C56<1,(C$28+C$42)*(1-C56),0) -> 0.3064645026 | D57: 0.2486298187 | E57: 0.03924162679 | F57: 0 | G57: 0 | H57: 0 | I57: 0 | J57: 0 | K57: 0 | L57: 0 | M57: 0 | N57: 0.1912436927
B59: Pincement échangeur | C59: =Pincement -> 1 | D59: 1 | E59: 1 | F59: 1 | G59: 1 | H59: 1 | I59: 1 | J59: 1 | K59: 1 | L59: 1 | M59: 1 | N59: 1
B60: Delta T PAC | C60: =MAX(3,C51/(1.163*DEBITPAC)) -> 3.354089135 | D60: =MAX(3,D51/(1.163*DEBITPAC)) -> 3.413052666 | E60: 3.735597499 | F60: 3.885763278 | G60: 4.173752914 | H60: 4.370411119 | I60: 4.548601991 | J60: 4.557684522 | K60: 4.294529069 | L60: 4.050624186 | M60: 3.691960226 | N60: 3.447601379
B61: T max thermo (milieu échangeur) | C61: =TMAX-C60/2-C59 -> 47.32295543 | D61: =TMAX-D60/2-D59 -> 47.29347367 | E61: 47.13220125 | F61: 47.05711836 | G61: 46.91312354 | H61: 46.81479444 | I61: 46.725699 | J61: 46.72115774 | K61: 46.85273547 | L61: 46.97468791 | M61: 47.15401989 | N61: 47.27619931
B62: Température d'ECS Début de charge | C62: =IF(HeuresCreuses="OUI",IF(C$32/(V_PAC*Nbr_ballons_PAC)<0.85,C$35,C$34),IF((V_PAC*Nbr_ballons_PAC)>400,25,C$34)) -> 25 | D62: 25 | E62: 25 | F62: 25 | G62: 25 | H62: 25 | I62: 25 | J62: 25 | K62: 25 | L62: 25 | M62: 25 | N62: 25
B63: T depart PAC Debut de charge | C63: =C62+C$59+C$60/2 -> 27.67704457 | D63: 27.70652633 | E63: 27.86779875 | F63: 27.94288164 | G63: 28.08687646 | H63: 28.18520556 | I63: 28.274301 | J63: 28.27884226 | K63: 28.14726453 | L63: 28.02531209 | M63: 27.84598011 | N63: 27.72380069
B64: T depart PAC pour TECS fin de charge | C64: =T_ECS+C$59+C$60/2 -> 42.67704457 | D64: =T_ECS+D59+D60/2 -> 42.70652633 | E64: 42.86779875 | F64: 42.94288164 | G64: 43.08687646 | H64: 43.18520556 | I64: 43.274301 | J64: 43.27884226 | K64: 43.14726453 | L64: 43.02531209 | M64: 42.84598011 | N64: 42.72380069
B65: T depart PAC Fin de charge | C65: =MIN(C64,TMAX) -> 42.67704457 | D65: =MIN(D64,TMAX) -> 42.70652633 | E65: 42.86779875 | F65: 42.94288164 | G65: 43.08687646 | H65: 43.18520556 | I65: 43.274301 | J65: 43.27884226 | K65: 43.14726453 | L65: 43.02531209 | M65: 42.84598011 | N65: 42.72380069
B66: COP debut charge | C66: =IF(C63<25,1.2*C$50,IF(C63<35,1.2*C$50-0.2*C$50*(C63-25)/10,IF(C63<=TMAX,C$50+(C$52-C$50)/(TMAX-35)*(C63-35),1))) -> 4.16065913 | D66: =IF(D63<25,1.2*D50,IF(D63<35,1.2*D50-0.2*D50*(D63-25)/10,IF(D63<=TMAX,D50+(D52-D50)/(TMAX-35)*(D63-35),1))) -> 4.231624348 | E66: 4.618489886 | F66: 4.797833111 | G66: 5.140414267 | H66: 5.373319884 | I66: 5.583631605 | J66: 5.594332957 | K66: 5.28355066 | L66: 4.994164808 | M66: 4.566282316 | N66: 4.273170297
B67: COP fin charge | C67: =IF(C65<25,1.2*C$50,IF(C65<35,1.2*C$50-0.2*C$50*(C65-25)/10,IF(C65<=TMAX,C$50+(C$52-C$50)/(TMAX-35)*(C65-35),1))) -> 3.109065597 | D67: =IF(D65<25,1.2*D50,IF(D65<35,1.2*D50-0.2*D50*(D65-25)/10,IF(D65<=TMAX,D50+(D52-D50)/(TMAX-35)*(D65-35),1))) -> 3.161689392 | E67: 3.448311652 | F67: 3.58103626 | G67: 3.834302723 | H67: 4.006287162 | I67: 4.161446736 | J67: 4.169338166 | K67: 3.940018223 | L67: 3.726224733 | M67: 3.409657273 | N67: 3.192490815
B68: COP moyen thermo | C68: =(C66+C67)/2 -> 3.634862364 | D68: =(D66+D67)/2 -> 3.69665687 | E68: 4.033400769 | F68: 4.189434685 | G68: 4.487358495 | H68: 4.689803523 | I68: 4.872539171 | J68: 4.881835561 | K68: 4.611784441 | L68: 4.36019477 | M68: 3.987969795 | N68: 3.732830556
B69: Appoint si TECS>TMAXTHERMO (kWh/m2) | C69: =IF(T_ECS>C61,(T_ECS-C61)/(T_ECS-C$12)*C48,0) -> 0 | D69: 0 | E69: 0 | F69: 0 | G69: 0 | H69: 0 | I69: 0 | J69: 0 | K69: 0 | L69: 0 | M69: 0 | N69: 0 | O69: =SUM(C69:N69) -> 0 | P69: =(#REF!-#REF!)/#REF! -> 
B70: Consommation PAC pour les besoins ECS | C70: =(C48-C69)/C68 -> 0.5418097602 | D70: =(D48-D69)/D68 -> 0.4807166013 | E70: 0.4689171592 | F70: 0.4082844415 | G70: 0.3616635769 | H70: 0.3100915451 | I70: 0.2942051425 | J70: 0.2943899331 | K70: 0.3170441035 | L70: 0.3752949399 | M70: 0.4316314609 | N70: 0.5091433795
B72: Besoin couvert par la PAC (kWh/m2) | C72: =C48-C57-C69 -> 1.662939403 | D72: =D48-D57-D69 -> 1.528414508 | E72: 1.852089204 | F72: 1.710481001 | G72: 1.622914124 | H72: 1.454268421 | I72: 1.433526081 | J72: 1.437163244 | K72: 1.462139064 | L72: 1.636359034 | M72: 1.721333229 | N72: 1.709302272
B73: Nb heures fonct PAC en ECS / jour | C73: =(C72*SHON/C$10)/(C49+C51)*2 -> 12 | D73: 12 | E73: 12 | F73: 11.00935247 | G73: 9.411269859 | H73: 8.322276527 | I73: 7.627936756 | J73: 7.632050985 | K73: 8.515163563 | L73: 9.777685609 | M73: 11.66078532 | N73: 12
B74: Conso circulateurs PAC kWh/m2 par mois | C74: =C72/(C68*(1-CircECS))-C72/C68 -> 0.002761552597 | D74: 0.002495725847 | E74: 0.002771758509 | F74: 0.002464493611 | G74: 0.002183079941 | H74: 0.00187177995 | I74: 0.001775886172 | J74: 0.001777001608 | K74: 0.001913747104 | L74: 0.00226536181 | M74: 0.002605421293 | N74: 0.002764047228
B75: Conso circulateur ECS kWh/m2 par mois | C75: =IF(TypeEchangeur="Echangeur à plaques",1.1*Pcircul_ECS__W*'Calcul (EF)'!C73*'Calcul (EF)'!C$10/1000/SHON,0) -> 0 | D75: =IF(TypeEchangeur="Echangeur à plaques",1.1*Pcircul_ECS__W*'Calcul (EF)'!D73*'Calcul (EF)'!D$10/1000/SHON,0) -> 0 | E75: =IF(TypeEchangeur="Echangeur à plaques",1.1*Pcircul_ECS__W*'Calcul (EF)'!E73*'Calcul (EF)'!E$10/1000/SHON,0) -> 0 | F75: =IF(TypeEchangeur="Echangeur à plaques",1.1*Pcircul_ECS__W*'Calcul (EF)'!F73*'Calcul (EF)'!F$10/1000/SHON,0) -> 0 | G75: =IF(TypeEchangeur="Echangeur à plaques",1.1*Pcircul_ECS__W*'Calcul (EF)'!G73*'Calcul (EF)'!G$10/1000/SHON,0) -> 0 | H75: =IF(TypeEchangeur="Echangeur à plaques",1.1*Pcircul_ECS__W*'Calcul (EF)'!H73*'Calcul (EF)'!H$10/1000/SHON,0) -> 0 | I75: =IF(TypeEchangeur="Echangeur à plaques",1.1*Pcircul_ECS__W*'Calcul (EF)'!I73*'Calcul (EF)'!I$10/1000/SHON,0) -> 0 | J75: =IF(TypeEchangeur="Echangeur à plaques",1.1*Pcircul_ECS__W*'Calcul (EF)'!J73*'Calcul (EF)'!J$10/1000/SHON,0) -> 0 | K75: =IF(TypeEchangeur="Echangeur à plaques",1.1*Pcircul_ECS__W*'Calcul (EF)'!K73*'Calcul (EF)'!K$10/1000/SHON,0) -> 0 | L75: =IF(TypeEchangeur="Echangeur à plaques",1.1*Pcircul_ECS__W*'Calcul (EF)'!L73*'Calcul (EF)'!L$10/1000/SHON,0) -> 0 | M75: =IF(TypeEchangeur="Echangeur à plaques",1.1*Pcircul_ECS__W*'Calcul (EF)'!M73*'Calcul (EF)'!M$10/1000/SHON,0) -> 0 | N75: =IF(TypeEchangeur="Echangeur à plaques",1.1*Pcircul_ECS__W*'Calcul (EF)'!N73*'Calcul (EF)'!N$10/1000/SHON,0) -> 0
B76: Conso totale auxiliaires kWh/m2 par mois | C76: =SUM(C74:C75) -> 0.002761552597 | D76: =SUM(D74:D75) -> 0.002495725847 | E76: 0.002771758509 | F76: 0.002464493611 | G76: 0.002183079941 | H76: 0.00187177995 | I76: 0.001775886172 | J76: 0.001777001608 | K76: 0.001913747104 | L76: 0.00226536181 | M76: 0.002605421293 | N76: 0.002764047228 | O76: =SUM(C76:N76) -> 0.02764985567
B77: Conso auxiliaires hors cycle antilégionnelle | C77: =(C76/C72) -> 0.001660645356 | D77: =(1/D72)*D76 -> 0.001632885474 | E77: 0.001496557781 | F77: 0.00144081905 | G77: 0.001345160479 | H77: 0.001287093857 | I77: 0.001238823762 | J77: 0.001236464692 | K77: 0.001308868049 | L77: 0.001384391666 | M77: 0.001513606575 | N77: 0.001617061694 | O77: =SUM(C77:N77) -> 0.01716237844
B78: COP corrigé sans anti Légionnelle | C78: =C48/(C57+C69+C70+C77) -> 2.317123214 | D78: =D48/(D57+D69+D70+D77) -> 2.431046014 | E78: 3.710999705 | F78: 4.174702332 | G78: 4.470730197 | H78: 4.670418066 | I78: 4.852108165 | J78: 4.861417164 | K78: 4.592823672 | L78: 4.344169954 | M78: 3.974034008 | N78: 2.707314491
B79: Besoins ECS / Cop : | C79: =C$27/C78 -> 0.8465771279 | D79: =D$27/D78 -> 0.7280885953 | E79: 0.5075587684 | F79: 0.4079216804 | G79: 0.3612684421 | H79: 0.3097664899 | I79: 0.2938404591 | J79: 0.2940259611 | K79: 0.3167135857 | L79: 0.3748883356 | M79: 0.4312504158 | N79: 0.6991302933 | O79: 5.571030155
B80: Pertes de stockage: | C80: =C$42/C78 -> 0.003357780243 | D80: 0.002890710207 | E80: 0.002096575361 | F80: 0.001803580137 | G80: 0.001740295254 | H80: 0.001612149084 | I80: 0.001603507235 | J80: 0.001600436721 | K80: 0.001639385864 | L80: 0.001790995893 | M80: 0.001894651679 | N80: 0.00287384069 | O80: 0.02490390837
B81: Consommation ECS : | C81: =SUM(C79:C80) -> 0.8499349082 | D81: 0.7309793055 | E81: 0.5096553438 | F81: 0.4097252606 | G81: 0.3630087374 | H81: 0.311378639 | I81: 0.2954439663 | J81: 0.2956263978 | K81: 0.3183529716 | L81: 0.3766793315 | M81: 0.4331450675 | N81: 0.7020041339 | O81: 5.595934063
B82: Dont besoin fourni par l'appoint : | C82: =C69+C57 -> 0.3064645026 | D82: =D69+D57 -> 0.2486298187 | E82: 0.03924162679 | F82: 0 | G82: 0 | H82: 0 | I82: 0 | J82: 0 | K82: 0 | L82: 0 | M82: 0 | N82: 0.1912436927 | O82: 0.7855796408
B83: Dont consommation électrique PAC + auxiliaires | C83: =C70+C76 -> 0.5445713128 | D83: =D70+D76 -> 0.4832123271 | E83: 0.4716889177 | F83: 0.4107489351 | G83: 0.3638466568 | H83: 0.3119633251 | I83: 0.2959810287 | J83: 0.2961669347 | K83: 0.3189578506 | L83: 0.3775603017 | M83: 0.4342368822 | N83: 0.5119074268 | O83: 4.820841899

Sheet POST-TRAITEMENT & SORTIE
A1: POST-TRAITEMENT
A3: Mois | B3: Répartition conso [%] | C3: Requis ECS [kWh/m².an] | D3: Besoins ECS / COP [kWh/m².an] | E3: Pertes de stockage ballon PAC à 40°C [kWh/m².an] | F3: Pertes de stockage ballon cogé à 80°C [kWh/m².an] | G3: Pertes de bouclage [kWh/m².an] | H3: Conso EF ECS PAC [kWhef/m².an] | I3: Conso EF ECS cogé [kWhef/m².an] | J3: Production élec [kWhef/m².an] | K3: Part cogé | L3: Conso ECS totale [kWhep/m².an]
A4: Janvier | B4: =D4/$D$17 -> 0.1519606077 | C4: ='Calcul (EF)'!$C27 -> 1.961623515 | D4: ='Calcul (EF)'!$C79 -> 0.8465771279 | E4: ='Calcul (EF)'!C$42 -> 0.007780390546 | F4: ='Calcul (EF)'!$C43 -> 0.05446273382 | G4: ='Calcul (EF)'!C$40 -> 0.2746272921 | H4: =D4+E4 -> 0.8543575185 | I4: =$I$17*B4+G4 -> 4.330869372 | J4: =(C4/ENTREE!$D$63+F4)*ENTREE!$B$65 -> 0.8381605629 | K4: =H4/(H4+J4) -> 0.5047848693 | L4: =I4*K4 -> 2.18615733
A5: Février | B5: =D5/$D$17 -> 0.1306919143 | C5: ='Calcul (EF)'!$D27 -> 1.770016877 | D5: ='Calcul (EF)'!$D79 -> 0.7280885953 | E5: ='Calcul (EF)'!D$42 -> 0.007027449525 | F5: ='Calcul (EF)'!$D43 -> 0.04919214668 | G5: ='Calcul (EF)'!D$40 -> 0.2478023628 | H5: =D5+E5 -> 0.7351160448 | I5: =$I$17*B5+G5 -> 3.736325145 | J5: =(C5/ENTREE!$D$63+F5)*ENTREE!$B$65 -> 0.7563068116 | K5: =H5/(H5+J5) -> 0.4928957885 | L5: =I5*K5 -> 1.841618929
A6: Mars | B6: =D6/$D$17 -> 0.09110680688 | C6: ='Calcul (EF)'!$E$27 -> 1.88355044 | D6: ='Calcul (EF)'!$E$79 -> 0.5075587684 | E6: ='Calcul (EF)'!E$42 -> 0.007780390546 | F6: ='Calcul (EF)'!$E$43 -> 0.05446273382 | G6: ='Calcul (EF)'!E$40 -> 0.2636970616 | H6: =D6+E6 -> 0.515339159 | I6: =$I$17*B6+G6 -> 2.695585624 | J6: =(C6/ENTREE!$D$63+F6)*ENTREE!$B$65 -> 0.8054952177 | K6: =H6/(H6+J6) -> 0.3901618311 | L6: =I6*K6 -> 1.051714623
A7: Avril | B7: 0.07322194803 | C7: ='Calcul (EF)'!$F$27 -> 1.702951591 | D7: ='Calcul (EF)'!$F$79 -> 0.4079216804 | E7: ='Calcul (EF)'!F$42 -> 0.007529410206 | F7: ='Calcul (EF)'!$F$43 -> 0.05270587144 | G7: ='Calcul (EF)'!F$40 -> 0.2384132227 | H7: 0.4154510906 | I7: =$I$17*B7+G7 -> 2.19290624 | J7: =(C7/ENTREE!$D$63+F7)*ENTREE!$B$65 -> 0.7293714566 | K7: =H7/(H7+J7) -> 0.3628956222 | L7: 0.7957960746
A8: Mai | B8: 0.06484769102 | C8: ='Calcul (EF)'!$G$27 -> 1.615133733 | D8: ='Calcul (EF)'!$G$79 -> 0.3612684421 | E8: ='Calcul (EF)'!G$42 -> 0.007780390546 | F8: ='Calcul (EF)'!$G$43 -> 0.05446273382 | G8: ='Calcul (EF)'!G$40 -> 0.2261187227 | H8: 0.3690488327 | I8: 1.957080036 | J8: =(C8/ENTREE!$D$63+F8)*ENTREE!$B$65 -> 0.6931911442 | K8: 0.3474251023 | L8: 0.6799387317
A9: Juin | B9: =D9/$D$17 -> 0.05560308979 | C9: ='Calcul (EF)'!$H$27 -> 1.446739011 | D9: ='Calcul (EF)'!$H$79 -> 0.3097664899 | E9: ='Calcul (EF)'!H$42 -> 0.007529410206 | F9: ='Calcul (EF)'!$H$43 -> 0.05270587144 | G9: ='Calcul (EF)'!H$40 -> 0.2025434615 | H9: 0.3172959001 | I9: 1.686741215 | J9: =(C9/ENTREE!$D$63+F9)*ENTREE!$B$65 -> 0.6221735225 | K9: 0.3377394649 | L9: 0.5696790753
A10: Juillet | B10: 0.052744367 | C10: ='Calcul (EF)'!$I$27 -> 1.425745691 | D10: ='Calcul (EF)'!$I$79 -> 0.2938404591 | E10: ='Calcul (EF)'!I$42 -> 0.007780390546 | F10: ='Calcul (EF)'!$I$43 -> 0.05446273382 | G10: ='Calcul (EF)'!I$40 -> 0.1996043967 | H10: 0.3016208496 | I10: 1.607495061 | J10: =(C10/ENTREE!$D$63+F10)*ENTREE!$B$65 -> 0.6139522289 | K10: =H10/(H10+J10) -> 0.3294339433 | L10: =I10*K10 -> 0.5295634367
A11: Août | B11: 0.05277766461 | C11: ='Calcul (EF)'!$J$27 -> 1.429382854 | D11: ='Calcul (EF)'!$J$79 -> 0.2940259611 | E11: ='Calcul (EF)'!J$42 -> 0.007780390546 | F11: ='Calcul (EF)'!$J$43 -> 0.05446273382 | G11: ='Calcul (EF)'!J$40 -> 0.2001135995 | H11: 0.3018063516 | I11: 1.608893067 | J11: =(C11/ENTREE!$D$63+F11)*ENTREE!$B$65 -> 0.6154739979 | K11: 0.3290230209 | L11: 0.5293628573
A12: Septembre | B12: 0.05685009359 | C12: ='Calcul (EF)'!$K$27 -> 1.454609654 | D12: ='Calcul (EF)'!$K$79 -> 0.3167135857 | E12: ='Calcul (EF)'!K$42 -> 0.007529410206 | F12: ='Calcul (EF)'!$K$43 -> 0.05270587144 | G12: ='Calcul (EF)'!K$40 -> 0.2036453515 | H12: 0.3242429959 | I12: 1.721129029 | J12: =(C12/ENTREE!$D$63+F12)*ENTREE!$B$65 -> 0.6254665563 | K12: 0.3414127984 | L12: 0.5876154783
A13: Octobre | B13: 0.06729246212 | C13: ='Calcul (EF)'!$L$27 -> 1.628578644 | D13: ='Calcul (EF)'!$L$79 -> 0.3748883356 | E13: ='Calcul (EF)'!L$42 -> 0.007780390546 | F13: ='Calcul (EF)'!$L$43 -> 0.05446273382 | G13: ='Calcul (EF)'!L$40 -> 0.2280010101 | H13: 0.3826687262 | I13: 2.024219916 | J13: =(C13/ENTREE!$D$63+F13)*ENTREE!$B$65 -> 0.6988164207 | K13: 0.3538363216 | L13: 0.716242529
A14: Novembre | B14: 0.0774094564 | C14: ='Calcul (EF)'!$M$27 -> 1.713803818 | D14: ='Calcul (EF)'!$M$79 -> 0.4312504158 | E14: ='Calcul (EF)'!M$42 -> 0.007529410206 | F14: ='Calcul (EF)'!$M$43 -> 0.05270587144 | G14: ='Calcul (EF)'!M$40 -> 0.2399325346 | H14: 0.4387798261 | I14: 2.306201544 | J14: =(C14/ENTREE!$D$63+F14)*ENTREE!$B$65 -> 0.733911969 | K14: 0.3741646594 | L14: 0.8628991152
A15: Décembre | B15: 0.1254938986 | C15: ='Calcul (EF)'!$N$27 -> 1.892765574 | D15: ='Calcul (EF)'!$N$79 -> 0.6991302933 | E15: ='Calcul (EF)'!N$42 -> 0.007780390546 | F15: ='Calcul (EF)'!$N$43 -> 0.05446273382 | G15: ='Calcul (EF)'!N$40 -> 0.2649871804 | H15: 0.7069106838 | I15: =$I$17*B15+G15 -> 3.614760782 | J15: =(C15/ENTREE!$D$63+F15)*ENTREE!$B$65 -> 0.8093507791 | K15: 0.466219515 | L15: =I15*K15 -> 1.685272019
A17: TOTAL | B17: =SUM(B4:B15) -> 1 | C17: =SUM(C4:C15) -> 19.9249014 | D17: 5.571030155 | E17: =SUM(E4:E15) -> 0.09160782417 | F17: 0.6412547692 | G17: 2.789486196 | H17: =SUM(H4:H15) -> 5.662637979 | I17: =ENTREE!D67*ENTREE!D66/(12*ENTREE!D63*SHON)+F17 -> 26.69272084 | J17: =SUM(J4:J15) -> 8.541670667 | L17: =SUM(L4:L15) -> 12.0358602
A20: Résultat
A21: Conso ECS [kWhep/m².an] | B21: =L17 -> 12.0358602
A22: Prod élec alimentant la PAC [kWhep/m²] | B22: =J17*2.58 -> 22.03751032
A23: Gain / Mini-cogé seul | B23: =(SUM(I4:I15)-L17)/(SUM(I4:I15)) -> 0.5917585076

Sheet BASES (hidden)
A1: Besoins d'eau chaude sanitaire selon le type d'usage
B2: a | C2: Unités | D2: Somme ah journalier sur 7 jours | E2: Durée annuel de fonctionnement de l'ECS dur_ecs | F2: Dur vacances | K2: Coefficients Cnn utilisés
A3: Logements collectifs | B3: =IF(SHAB/Nbr_lgt>27,(470.9*LN(SHAB/Nbr_lgt)-1075)/(SHAB/Nbr_lgt),17.7) -> 12.80640361 | C3: Nb logements | D3: 0.143 | E3: 1820 | F3: 0 | K3: PAC ou CE Thermo Air/Eau | Q3: PAC ou CE Thermo Air/Eau | V3: Impact sur le COP de la consommation des circulateurs
A4: Hébergements | B4: 330 | C4: Nb lits | D4: 0.143 | E4: 1820 | F4: 0 | K4: T air extérieur | N4: Teau | Q4: T air extérieur | R4: RT2012 | S4: AFPAC | W4: Sélectionné | Y4: Standard | Z4: Haute efficacité
A5: Etablissement sanitaires avec hébergement - sans blanchisserie | B5: 665 | C5: Nb lits | D5: 0.143 | E5: 1820 | F5: 0 | K5: Cnn(2/7) | L5: =IF(BaseCnn="AFPAC",BASES!S5,BASES!R5) -> 0.85 | N5: Cnn(45/35) | O5: 0.8 | Q5: Cnn(2/7) | R5: 0.85 | S5: 0.8 | V5: Circuit ECS | W5: =IF(EfficaciteCirculateurs="Standard",Y5,Z5) -> 0.006 | X5: Circuit ECS | Y5: 0.024 | Z5: 0.006
A6: Etablissement sanitaires avec hébergement - avec blanchisserie | B6: 1050 | C6: Nb lits | D6: 0.143 | E6: 1820 | F6: 0 | K6: Cnn(-7/7) | L6: =IF(BaseCnn="AFPAC",BASES!S6,BASES!R6) -> 0.5 | N6: Cnn(55/45) | O6: 0.8 | Q6: Cnn(-7/7) | R6: 0.5 | S6: 0.6
A7: Hotel 1* sans blanchisserie | B7: 665 | C7: Nb chambres | D7: 0.143 | E7: 1040 | F7: 0 | K7: Cnn(-15/-7) | L7: =IF(BaseCnn="AFPAC",BASES!S7,BASES!R7) -> 0.8 | N7: Cnn(65/55) | O7: 0.8 | Q7: Cnn(-15/-7) | R7: 0.8 | S7: 0.8
A8: Hotel 1* avec blanchisserie | B8: 830 | C8: Nb chambres | D8: 0.143 | E8: 1040 | F8: 0 | K8: Cnn(20/7) | L8: =IF(BaseCnn="AFPAC",BASES!S8,BASES!R8) -> 1.25 | N8: Cnn(25/35) | O8: 1.2 | Q8: Cnn(20/7) | R8: 1.25 | S8: 1.2
A9: Hotel 2* sans blanchisserie | B9: 910 | C9: Nb chambres | D9: 0.143 | E9: 1040 | F9: 0
A10: Hotel 2* avec blanchisserie | B10: 1075 | C10: Nb chambres | D10: 0.143 | E10: 1040 | F10: 0
A11: Hotel 3* sans blanchisserie | B11: 1160 | C11: Nb chambres | D11: 0.143 | E11: 1040 | F11: 0
A12: Hotel 3* avec blanchisserie | B12: 1325 | C12: Nb chambres | D12: 0.143 | E12: 1040 | F12: 0
A13: Hotel 4* sans blanchisserie | B13: 1405 | C13: Nb chambres | D13: 0.143 | E13: 1040 | F13: 0
A14: Hotel 4* avec blanchisserie | B14: 1570 | C14: Nb chambres | D14: 0.143 | E14: 1040 | F14: 0
A18: Constantes de calcul
A19: Masse volumique de l'eau : | B19: 1
A20: Capacité calorifique de l'eau : | B20: =1.163/1000 -> 0.001163
A21: Température de l'eau mitigée : | B21: 40
A23: Pénalités
A24: Coefficient de pénalité PV essai | B24: 0.9
A25: COP hors pertes par défaut CE Thermo | B25: 2
A26: COP par défaut PAC 2 SERVICES | B26: =0.85*3.4 -> 2.89
A27: Temps de fonctionnement maxi / besoin | B27: 12
A28: Données climatiques
A29: Température de l'arrivée d'eau froide | B29: 1 | C29: 2 | D29: 3 | E29: 4 | F29: 5 | G29: 6 | H29: 7 | I29: 8 | J29: 9 | K29: 10 | L29: 11 | M29: 12
A30: H1a | B30: 5.830967742 | C30: 5.865142857 | D30: 7.190903226 | E30: 9.347933333 | F30: 11.8663871 | G30: 13.9596 | H30: 15.16529032 | I30: 15.10193548 | J30: 13.81793333 | K30: 11.63219355 | L30: 9.1526 | M30: 7.030387097
A31: H1b | B31: 5.830967742 | C31: 5.865142857 | D31: 7.190903226 | E31: 9.347933333 | F31: 11.8663871 | G31: 13.9596 | H31: 15.16529032 | I31: 15.10193548 | J31: 13.81793333 | K31: 11.63219355 | L31: 9.1526 | M31: 7.030387097
A32: H1c | B32: 5.830967742 | C32: 5.865142857 | D32: 7.190903226 | E32: 9.347933333 | F32: 11.8663871 | G32: 13.9596 | H32: 15.16529032 | I32: 15.10193548 | J32: 13.81793333 | K32: 11.63219355 | L32: 9.1526 | M32: 7.030387097
A33: H2a | B33: 7.330967742 | C33: 7.365142857 | D33: 8.690903226 | E33: 10.84793333 | F33: 13.3663871 | G33: 15.4596 | H33: 16.66529032 | I33: 16.60193548 | J33: 15.31793333 | K33: 13.13219355 | L33: 10.6526 | M33: 8.530387097
A34: H2b | B34: 7.330967742 | C34: 7.365142857 | D34: 8.690903226 | E34: 10.84793333 | F34: 13.3663871 | G34: 15.4596 | H34: 16.66529032 | I34: 16.60193548 | J34: 15.31793333 | K34: 13.13219355 | L34: 10.6526 | M34: 8.530387097
A35: H2c | B35: 7.330967742 | C35: 7.365142857 | D35: 8.690903226 | E35: 10.84793333 | F35: 13.3663871 | G35: 15.4596 | H35: 16.66529032 | I35: 16.60193548 | J35: 15.31793333 | K35: 13.13219355 | L35: 10.6526 | M35: 8.530387097
A36: H2d | B36: 7.330967742 | C36: 7.365142857 | D36: 8.690903226 | E36: 10.84793333 | F36: 13.3663871 | G36: 15.4596 | H36: 16.66529032 | I36: 16.60193548 | J36: 15.31793333 | K36: 13.13219355 | L36: 10.6526 | M36: 8.530387097
A37: H3 | B37: 9.830967742 | C37: 9.865142857 | D37: 11.19090323 | E37: 13.34793333 | F37: 15.8663871 | G37: 17.9596 | H37: 19.16529032 | I37: 19.10193548 | J37: 17.81793333 | K37: 15.63219355 | L37: 13.1526 | M37: 11.0303871
A39: Température extérieure | B39: 1 | C39: 2 | D39: 3 | E39: 4 | F39: 5 | G39: 6 | H39: 7 | I39: 8 | J39: 9 | K39: 10 | L39: 11 | M39: 12
A40: H1a | B40: 3.909489247 | C40: 4.441145833 | D40: 7.545120968 | E40: 9.657361111 | F40: 13.70823925 | G40: 16.47444444 | H40: 18.9808871 | I40: 19.10864247 | J40: 15.40708333 | K40: 11.97630376 | L40: 6.955972222 | M40: 4.75266129
A41: H1b | B41: 2.120349462 | C41: 2.923854167 | D41: 6.437446237 | E41: 9.095 | F41: 13.63010753 | G41: 16.63930556 | H41: 19.17225806 | I41: 19.06885753 | J41: 14.93743056 | K41: 10.95935484 | L41: 5.395486111 | M41: 3.251518817
A42: H1c | B42: 2.760551075 | C42: 4.226532738 | D42: 7.887755376 | E42: 10.35284722 | F42: 14.91841398 | G42: 18.07979167 | H42: 20.86997312 | I42: 20.59293011 | J42: 16.446875 | K42: 12.3169086 | L42: 6.405625 | M42: 3.829301075
A43: H2a | B43: 5.856021505 | C43: 6.221041667 | D43: 8.640201613 | E43: 10.28479167 | F43: 14.13495968 | G43: 16.75020833 | H43: 19.11702957 | I43: 19.19431452 | J43: 16.43770833 | K43: 13.09245968 | L43: 8.620486111 | M43: 6.63077957
A44: H2b | B44: 6.574946237 | C44: 7.281071429 | D44: 9.70125 | E44: 11.48104167 | F44: 15.42377688 | G44: 18.09833333 | H44: 20.51168011 | I44: 20.62419355 | J44: 17.9325 | K44: 14.75049731 | L44: 9.884444444 | M44: 7.422755376
A45: H2c | B45: 5.491693548 | C45: 7.092619048 | D45: 9.696061828 | E45: 11.67826389 | F45: 15.85790323 | G45: 18.73986111 | H45: 21.28299731 | I45: 21.43747312 | J45: 18.18527778 | K45: 14.5928629 | L45: 9.263472222 | M45: 6.373803763
A46: H2d | B46: 6.126169355 | C46: 7.2665625 | D46: 9.789583333 | E46: 13.86277778 | F46: 17.0644086 | G46: 20.65083333 | H46: 24.03663978 | I46: 22.6093414 | J46: 18.24826389 | K46: 14.47260753 | L46: 8.063125 | M46: 6.119852151
A47: H3 | B47: 9.255658602 | C47: 9.80483631 | D47: 11.66946237 | E47: 13.30833333 | F47: 17.23819892 | G47: 20.47881944 | H47: 23.56247312 | I47: 24.01997312 | J47: 20.79027778 | K47: 17.38349462 | L47: 12.79020833 | M47: 10.09858871
A49: Températures de retour d'eau glycolée pour des capteurs horizontaux, donnée par la norme EN 15316-4-2 : θ retour capteur = MAX(0 ; MIN(0.15 θ ext ; 4.5))
A50: Temp. Retour Eau glycolée | B50: 1 | C50: 2 | D50: 3 | E50: 4 | F50: 5 | G50: 6 | H50: 7 | I50: 8 | J50: 9 | K50: 10 | L50: 11 | M50: 12
A51: H1a | B51: =MAX(0,MIN(0.15*B40,4.5)) -> 0.5864233871 | C51: =MAX(0,MIN(0.15*C40,4.5)) -> 0.666171875 | D51: 1.131768145 | E51: 1.448604167 | F51: 2.056235887 | G51: 2.471166667 | H51: 2.847133065 | I51: 2.866296371 | J51: 2.3110625 | K51: 1.796445565 | L51: 1.043395833 | M51: 0.7128991935
A52: H1b | B52: =MAX(0,MIN(0.15*B41,4.5)) -> 0.3180524194 | C52: 0.438578125 | D52: 0.9656169355 | E52: 1.36425 | F52: 2.044516129 | G52: 2.495895833 | H52: 2.87583871 | I52: 2.860328629 | J52: 2.240614583 | K52: 1.643903226 | L52: 0.8093229167 | M52: 0.4877278226
A53: H1c | B53: =MAX(0,MIN(0.15*B42,4.5)) -> 0.4140826613 | C53: 0.6339799107 | D53: 1.183163306 | E53: 1.552927083 | F53: 2.237762097 | G53: 2.71196875 | H53: 3.130495968 | I53: 3.088939516 | J53: 2.46703125 | K53: 1.84753629 | L53: 0.96084375 | M53: 0.5743951613
A54: H2a | B54: =MAX(0,MIN(0.15*B43,4.5)) -> 0.8784032258 | C54: 0.93315625 | D54: 1.296030242 | E54: 1.54271875 | F54: 2.120243952 | G54: 2.51253125 | H54: 2.867554435 | I54: 2.879147177 | J54: 2.46565625 | K54: 1.963868952 | L54: 1.293072917 | M54: 0.9946169355
A55: H2b | B55: =MAX(0,MIN(0.15*B44,4.5)) -> 0.9862419355 | C55: 1.092160714 | D55: 1.4551875 | E55: 1.72215625 | F55: 2.313566532 | G55: 2.71475 | H55: 3.076752016 | I55: 3.093629032 | J55: 2.689875 | K55: 2.212574597 | L55: 1.482666667 | M55: 1.113413306
A56: H2c | B56: =MAX(0,MIN(0.15*B45,4.5)) -> 0.8237540323 | C56: 1.063892857 | D56: 1.454409274 | E56: 1.751739583 | F56: 2.378685484 | G56: 2.810979167 | H56: 3.192449597 | I56: 3.215620968 | J56: 2.727791667 | K56: 2.188929435 | L56: 1.389520833 | M56: 0.9560705645
A57: H2d | B57: =MAX(0,MIN(0.15*B46,4.5)) -> 0.9189254032 | C57: 1.089984375 | D57: 1.4684375 | E57: 2.079416667 | F57: 2.55966129 | G57: 3.097625 | H57: 3.605495968 | I57: 3.39140121 | J57: 2.737239583 | K57: 2.170891129 | L57: 1.20946875 | M57: 0.9179778226
A58: H3 | B58: =MAX(0,MIN(0.15*B47,4.5)) -> 1.38834879 | C58: 1.470725446 | D58: 1.750419355 | E58: 1.99625 | F58: 2.585729839 | G58: 3.071822917 | H58: 3.534370968 | I58: 3.602995968 | J58: 3.118541667 | K58: 2.607524194 | L58: 1.91853125 | M58: 1.514788306
A60: Nombre d’heures par mois concernant des températures inférieures à 7°C,
A61: H1a | B61: 657 | C61: 550 | D61: 360 | E61: 143 | F61: 31 | G61: 6 | H61: 0 | I61: 0 | J61: 0 | K61: 64 | L61: 367 | M61: 545
A62: H1b | B62: 705 | C62: 596 | D62: 438 | E62: 258 | F62: 50 | G62: 10 | H62: 0 | I62: 0 | J62: 11 | K62: 116 | L62: 484 | M62: 515
A63: H1c | B63: 676 | C63: 570 | D63: 325 | E63: 175 | F63: 7 | G63: 0 | H63: 0 | I63: 0 | J63: 0 | K63: 57 | L63: 435 | M63: 568
A64: H2a | B64: 458 | C64: 335 | D64: 288 | E64: 110 | F64: 25 | G64: 15 | H64: 0 | I64: 0 | J64: 2 | K64: 48 | L64: 223 | M64: 368
A65: H2b | B65: 408 | C65: 282 | D65: 105 | E65: 44 | F65: 0 | G65: 0 | H65: 0 | I65: 0 | J65: 0 | K65: 16 | L65: 142 | M65: 313
A66: H2c | B66: 459 | C66: 331 | D66: 177 | E66: 82 | F66: 10 | G66: 0 | H66: 0 | I66: 0 | J66: 0 | K66: 37 | L66: 228 | M66: 405
A67: H2d | B67: 440 | C67: 319 | D67: 219 | E67: 61 | F67: 6 | G67: 0 | H67: 0 | I67: 0 | J67: 0 | K67: 49 | L67: 282 | M67: 434
A68: H3 | B68: 136 | C68: 77 | D68: 14 | E68: 3 | F68: 0 | G68: 0 | H68: 0 | I68: 0 | J68: 0 | K68: 0 | L68: 26 | M68: 88
A70: Nombre d’heures par mois concernant des températures inférieures à 6° C
A71: H1a | B71: 599 | C71: 483 | D71: 285 | E71: 97 | F71: 13 | G71: 3 | H71: 0 | I71: 0 | J71: 0 | K71: 30 | L71: 294 | M71: 456
A72: H1b | B72: 685 | C72: 559 | D72: 337 | E72: 197 | F72: 33 | G72: 5 | H72: 0 | I72: 0 | J72: 5 | K72: 76 | L72: 408 | M72: 495
A73: H1c | B73: 642 | C73: 457 | D73: 239 | E73: 132 | F73: 0 | G73: 0 | H73: 0 | I73: 0 | J73: 0 | K73: 27 | L73: 330 | M73: 524
A74: H2a | B74: 366 | C74: 281 | D74: 229 | E74: 67 | F74: 10 | G74: 8 | H74: 0 | I74: 0 | J74: 0 | K74: 21 | L74: 149 | M74: 287
A75: H2b | B75: 332 | C75: 219 | D75: 54 | E75: 22 | F75: 0 | G75: 0 | H75: 0 | I75: 0 | J75: 0 | K75: 7 | L75: 107 | M75: 241
A76: H2c | B76: 367 | C76: 268 | D76: 119 | E76: 50 | F76: 3 | G76: 0 | H76: 0 | I76: 0 | J76: 0 | K76: 15 | L76: 180 | M76: 324
A77: H2d | B77: 374 | C77: 259 | D77: 170 | E77: 31 | F77: 1 | G77: 0 | H77: 0 | I77: 0 | J77: 0 | K77: 30 | L77: 229 | M77: 359
A78: H3 | B78: 72 | C78: 39 | D78: 5 | E78: 0 | F78: 0 | G78: 0 | H78: 0 | I78: 0 | J78: 0 | K78: 0 | L78: 15 | M78: 46
A80: Nombre d’heures par mois concernant des températures inférieures à 5° C
A81: H1a | B81: 514 | C81: 396 | D81: 201 | E81: 45 | F81: 5 | G81: 0 | H81: 0 | I81: 0 | J81: 0 | K81: 7 | L81: 227 | M81: 363
A82: H1b | B82: 643 | C82: 512 | D82: 245 | E82: 129 | F82: 14 | G82: 0 | H82: 0 | I82: 0 | J82: 0 | K82: 52 | L82: 316 | M82: 462
A83: H1c | B83: 591 | C83: 376 | D83: 136 | E83: 72 | F83: 0 | G83: 0 | H83: 0 | I83: 0 | J83: 0 | K83: 13 | L83: 229 | M83: 468
A84: H2a | B84: 281 | C84: 242 | D84: 166 | E84: 32 | F84: 3 | G84: 4 | H84: 0 | I84: 0 | J84: 0 | K84: 9 | L84: 87 | M84: 245
A85: H2b | B85: 273 | C85: 139 | D85: 33 | E85: 11 | F85: 0 | G85: 0 | H85: 0 | I85: 0 | J85: 0 | K85: 1 | L85: 92 | M85: 188
A86: H2c | B86: 294 | C86: 191 | D86: 66 | E86: 29 | F86: 0 | G86: 0 | H86: 0 | I86: 0 | J86: 0 | K86: 5 | L86: 141 | M86: 263
A87: H2d | B87: 299 | C87: 192 | D87: 112 | E87: 17 | F87: 0 | G87: 0 | H87: 0 | I87: 0 | J87: 0 | K87: 18 | L87: 181 | M87: 281
A88: H3 | B88: 21 | C88: 16 | D88: 0 | E88: 0 | F88: 0 | G88: 0 | H88: 0 | I88: 0 | J88: 0 | K88: 0 | L88: 5 | M88: 28
A90: Nombre d’heures par mois concernant des températures inférieures à 4° C
A91: H1a | B91: 396 | C91: 312 | D91: 140 | E91: 16 | F91: 2 | G91: 0 | H91: 0 | I91: 0 | J91: 0 | K91: 2 | L91: 151 | M91: 274
A92: H1b | B92: 571 | C92: 439 | D92: 162 | E92: 83 | F92: 7 | G92: 0 | H92: 0 | I92: 0 | J92: 0 | K92: 34 | L92: 229 | M92: 418
A93: H1c | B93: 510 | C93: 294 | D93: 77 | E93: 25 | F93: 0 | G93: 0 | H93: 0 | I93: 0 | J93: 0 | K93: 9 | L93: 162 | M93: 375
A94: H2a | B94: 169 | C94: 190 | D94: 106 | E94: 8 | F94: 2 | G94: 0 | H94: 0 | I94: 0 | J94: 0 | K94: 7 | L94: 58 | M94: 202
A95: H2b | B95: 205 | C95: 83 | D95: 15 | E95: 4 | F95: 0 | G95: 0 | H95: 0 | I95: 0 | J95: 0 | K95: 0 | L95: 74 | M95: 124
A96: H2c | B96: 249 | C96: 137 | D96: 33 | E96: 15 | F96: 0 | G96: 0 | H96: 0 | I96: 0 | J96: 0 | K96: 1 | L96: 92 | M96: 203
A97: H2d | B97: 219 | C97: 124 | D97: 63 | E97: 8 | F97: 0 | G97: 0 | H97: 0 | I97: 0 | J97: 0 | K97: 12 | L97: 123 | M97: 226
A98: H3 | B98: 0 | C98: 8 | D98: 0 | E98: 0 | F98: 0 | G98: 0 | H98: 0 | I98: 0 | J98: 0 | K98: 0 | L98: 0 | M98: 11
A100: Nombre d’heures par mois concernant des températures inférieures à 3° C
A101: H1a | B101: 285 | C101: 212 | D101: 88 | E101: 3 | F101: 0 | G101: 0 | H101: 0 | I101: 0 | J101: 0 | K101: 0 | L101: 86 | M101: 219
A102: H1b | B102: 471 | C102: 367 | D102: 93 | E102: 56 | F102: 2 | G102: 0 | H102: 0 | I102: 0 | J102: 0 | K102: 10 | L102: 173 | M102: 380
A103: H1c | B103: 419 | C103: 246 | D103: 37 | E103: 10 | F103: 0 | G103: 0 | H103: 0 | I103: 0 | J103: 0 | K103: 7 | L103: 113 | M103: 298
A104: H2a | B104: 113 | C104: 140 | D104: 66 | E104: 2 | F104: 0 | G104: 0 | H104: 0 | I104: 0 | J104: 0 | K104: 6 | L104: 35 | M104: 150
A105: H2b | B105: 132 | C105: 41 | D105: 6 | E105: 0 | F105: 0 | G105: 0 | H105: 0 | I105: 0 | J105: 0 | K105: 0 | L105: 45 | M105: 98
A106: H2c | B106: 208 | C106: 97 | D106: 25 | E106: 10 | F106: 0 | G106: 0 | H106: 0 | I106: 0 | J106: 0 | K106: 0 | L106: 60 | M106: 159
A107: H2d | B107: 148 | C107: 88 | D107: 40 | E107: 5 | F107: 0 | G107: 0 | H107: 0 | I107: 0 | J107: 0 | K107: 6 | L107: 83 | M107: 176
A108: H3 | B108: 0 | C108: 2 | D108: 0 | E108: 0 | F108: 0 | G108: 0 | H108: 0 | I108: 0 | J108: 0 | K108: 0 | L108: 0 | M108: 0
A110: Nombre d’heures par mois concernant des températures inférieures à 2° C
A111: H1a | B111: 141 | C111: 133 | D111: 55 | E111: 0 | F111: 0 | G111: 0 | H111: 0 | I111: 0 | J111: 0 | K111: 0 | L111: 56 | M111: 157
A112: H1b | B112: 368 | C112: 271 | D112: 61 | E112: 30 | F112: 0 | G112: 0 | H112: 0 | I112: 0 | J112: 0 | K112: 4 | L112: 134 | M112: 324
A113: H1c | B113: 309 | C113: 181 | D113: 20 | E113: 0 | F113: 0 | G113: 0 | H113: 0 | I113: 0 | J113: 0 | K113: 3 | L113: 54 | M113: 230
A114: H2a | B114: 76 | C114: 114 | D114: 40 | E114: 0 | F114: 0 | G114: 0 | H114: 0 | I114: 0 | J114: 0 | K114: 2 | L114: 20 | M114: 87
A115: H2b | B115: 50 | C115: 22 | D115: 1 | E115: 0 | F115: 0 | G115: 0 | H115: 0 | I115: 0 | J115: 0 | K115: 0 | L115: 26 | M115: 62
A116: H2c | B116: 168 | C116: 50 | D116: 20 | E116: 6 | F116: 0 | G116: 0 | H116: 0 | I116: 0 | J116: 0 | K116: 0 | L116: 31 | M116: 108
A117: H2d | B117: 105 | C117: 57 | D117: 27 | E117: 0 | F117: 0 | G117: 0 | H117: 0 | I117: 0 | J117: 0 | K117: 2 | L117: 66 | M117: 129
A118: H3 | B118: 0 | C118: 0 | D118: 0 | E118: 0 | F118: 0 | G118: 0 | H118: 0 | I118: 0 | J118: 0 | K118: 0 | L118: 0 | M118: 0
A120: Nombre d’heures par mois concernant des températures inférieures à 1° C
A121: H1a | B121: 63 | C121: 67 | D121: 19 | E121: 0 | F121: 0 | G121: 0 | H121: 0 | I121: 0 | J121: 0 | K121: 0 | L121: 30 | M121: 103
A122: H1b | B122: 254 | C122: 187 | D122: 41 | E122: 6 | F122: 0 | G122: 0 | H122: 0 | I122: 0 | J122: 0 | K122: 0 | L122: 96 | M122: 283
A123: H1c | B123: 188 | C123: 109 | D123: 6 | E123: 0 | F123: 0 | G123: 0 | H123: 0 | I123: 0 | J123: 0 | K123: 2 | L123: 22 | M123: 165
A124: H2a | B124: 57 | C124: 97 | D124: 21 | E124: 0 | F124: 0 | G124: 0 | H124: 0 | I124: 0 | J124: 0 | K124: 1 | L124: 15 | M124: 55
A125: H2b | B125: 15 | C125: 9 | D125: 0 | E125: 0 | F125: 0 | G125: 0 | H125: 0 | I125: 0 | J125: 0 | K125: 0 | L125: 16 | M125: 41
A126: H2c | B126: 109 | C126: 18 | D126: 10 | E126: 1 | F126: 0 | G126: 0 | H126: 0 | I126: 0 | J126: 0 | K126: 0 | L126: 21 | M126: 88
A127: H2d | B127: 80 | C127: 30 | D127: 8 | E127: 0 | F127: 0 | G127: 0 | H127: 0 | I127: 0 | J127: 0 | K127: 0 | L127: 47 | M127: 91
A128: H3 | B128: 0 | C128: 0 | D128: 0 | E128: 0 | F128: 0 | G128: 0 | H128: 0 | I128: 0 | J128: 0 | K128: 0 | L128: 0 | M128: 0
A130: Nombre d’heures par mois concernant des températures inférieures à 0° C
A131: H1a | B131: 41 | C131: 29 | D131: 7 | E131: 0 | F131: 0 | G131: 0 | H131: 0 | I131: 0 | J131: 0 | K131: 0 | L131: 19 | M131: 70
A132: H1b | B132: 158 | C132: 118 | D132: 24 | E132: 0 | F132: 0 | G132: 0 | H132: 0 | I132: 0 | J132: 0 | K132: 0 | L132: 66 | M132: 230
A133: H1c | B133: 97 | C133: 60 | D133: 0 | E133: 0 | F133: 0 | G133: 0 | H133: 0 | I133: 0 | J133: 0 | K133: 0 | L133: 14 | M133: 117
A134: H2a | B134: 33 | C134: 69 | D134: 7 | E134: 0 | F134: 0 | G134: 0 | H134: 0 | I134: 0 | J134: 0 | K134: 0 | L134: 12 | M134: 44
A135: H2b | B135: 1 | C135: 2 | D135: 0 | E135: 0 | F135: 0 | G135: 0 | H135: 0 | I135: 0 | J135: 0 | K135: 0 | L135: 12 | M135: 25
A136: H2c | B136: 59 | C136: 0 | D136: 6 | E136: 0 | F136: 0 | G136: 0 | H136: 0 | I136: 0 | J136: 0 | K136: 0 | L136: 10 | M136: 53
A137: H2d | B137: 49 | C137: 18 | D137: 2 | E137: 0 | F137: 0 | G137: 0 | H137: 0 | I137: 0 | J137: 0 | K137: 0 | L137: 33 | M137: 70
A138: H3 | B138: 0 | C138: 0 | D138: 0 | E138: 0 | F138: 0 | G138: 0 | H138: 0 | I138: 0 | J138: 0 | K138: 0 | L138: 0 | M138: 0
A140: Nombre d’heures par mois concernant des températures inférieures à -1° C
A141: H1a | B141: 32 | C141: 14 | D141: 2 | E141: 0 | F141: 0 | G141: 0 | H141: 0 | I141: 0 | J141: 0 | K141: 0 | L141: 11 | M141: 56
A142: H1b | B142: 102 | C142: 89 | D142: 4 | E142: 0 | F142: 0 | G142: 0 | H142: 0 | I142: 0 | J142: 0 | K142: 0 | L142: 42 | M142: 182
A143: H1c | B143: 50 | C143: 33 | D143: 0 | E143: 0 | F143: 0 | G143: 0 | H143: 0 | I143: 0 | J143: 0 | K143: 0 | L143: 7 | M143: 80
A144: H2a | B144: 17 | C144: 32 | D144: 4 | E144: 0 | F144: 0 | G144: 0 | H144: 0 | I144: 0 | J144: 0 | K144: 0 | L144: 10 | M144: 37
A145: H2b | B145: 0 | C145: 0 | D145: 0 | E145: 0 | F145: 0 | G145: 0 | H145: 0 | I145: 0 | J145: 0 | K145: 0 | L145: 7 | M145: 11
A146: H2c | B146: 19 | C146: 0 | D146: 0 | E146: 0 | F146: 0 | G146: 0 | H146: 0 | I146: 0 | J146: 0 | K146: 0 | L146: 7 | M146: 19
A147: H2d | B147: 28 | C147: 14 | D147: 0 | E147: 0 | F147: 0 | G147: 0 | H147: 0 | I147: 0 | J147: 0 | K147: 0 | L147: 26 | M147: 47
A148: H3 | B148: 0 | C148: 0 | D148: 0 | E148: 0 | F148: 0 | G148: 0 | H148: 0 | I148: 0 | J148: 0 | K148: 0 | L148: 0 | M148: 0
A150: Nombre d’heures par mois concernant des températures inférieures à -2° C
A151: H1a | B151: 15 | C151: 0 | D151: 0 | E151: 0 | F151: 0 | G151: 0 | H151: 0 | I151: 0 | J151: 0 | K151: 0 | L151: 5 | M151: 46
A152: H1b | B152: 47 | C152: 58 | D152: 0 | E152: 0 | F152: 0 | G152: 0 | H152: 0 | I152: 0 | J152: 0 | K152: 0 | L152: 20 | M152: 142
A153: H1c | B153: 25 | C153: 18 | D153: 0 | E153: 0 | F153: 0 | G153: 0 | H153: 0 | I153: 0 | J153: 0 | K153: 0 | L153: 6 | M153: 42
A154: H2a | B154: 9 | C154: 17 | D154: 0 | E154: 0 | F154: 0 | G154: 0 | H154: 0 | I154: 0 | J154: 0 | K154: 0 | L154: 5 | M154: 20
A155: H2b | B155: 0 | C155: 0 | D155: 0 | E155: 0 | F155: 0 | G155: 0 | H155: 0 | I155: 0 | J155: 0 | K155: 0 | L155: 4 | M155: 7
A156: H2c | B156: 9 | C156: 0 | D156: 0 | E156: 0 | F156: 0 | G156: 0 | H156: 0 | I156: 0 | J156: 0 | K156: 0 | L156: 5 | M156: 15
A157: H2d | B157: 11 | C157: 9 | D157: 0 | E157: 0 | F157: 0 | G157: 0 | H157: 0 | I157: 0 | J157: 0 | K157: 0 | L157: 20 | M157: 41
A158: H3 | B158: 0 | C158: 0 | D158: 0 | E158: 0 | F158: 0 | G158: 0 | H158: 0 | I158: 0 | J158: 0 | K158: 0 | L158: 0 | M158: 0
A160: Nombre d’heures par mois concernant des températures inférieures à -3° C
A161: H1a | B161: 3 | C161: 0 | D161: 0 | E161: 0 | F161: 0 | G161: 0 | H161: 0 | I161: 0 | J161: 0 | K161: 0 | L161: 2 | M161: 31
A162: H1b | B162: 22 | C162: 22 | D162: 0 | E162: 0 | F162: 0 | G162: 0 | H162: 0 | I162: 0 | J162: 0 | K162: 0 | L162: 15 | M162: 109
A163: H1c | B163: 14 | C163: 7 | D163: 0 | E163: 0 | F163: 0 | G163: 0 | H163: 0 | I163: 0 | J163: 0 | K163: 0 | L163: 3 | M163: 25
A164: H2a | B164: 4 | C164: 8 | D164: 0 | E164: 0 | F164: 0 | G164: 0 | H164: 0 | I164: 0 | J164: 0 | K164: 0 | L164: 3 | M164: 4
A165: H2b | B165: 0 | C165: 0 | D165: 0 | E165: 0 | F165: 0 | G165: 0 | H165: 0 | I165: 0 | J165: 0 | K165: 0 | L165: 0 | M165: 4
A166: H2c | B166: 2 | C166: 0 | D166: 0 | E166: 0 | F166: 0 | G166: 0 | H166: 0 | I166: 0 | J166: 0 | K166: 0 | L166: 2 | M166: 11
A167: H2d | B167: 2 | C167: 4 | D167: 0 | E167: 0 | F167: 0 | G167: 0 | H167: 0 | I167: 0 | J167: 0 | K167: 0 | L167: 14 | M167: 24
A168: H3 | B168: 0 | C168: 0 | D168: 0 | E168: 0 | F168: 0 | G168: 0 | H168: 0 | I168: 0 | J168: 0 | K168: 0 | L168: 0 | M168: 0
A170: Nombre d’heures par mois concernant des températures inférieures à -4° C
A171: H1a | B171: 0 | C171: 0 | D171: 0 | E171: 0 | F171: 0 | G171: 0 | H171: 0 | I171: 0 | J171: 0 | K171: 0 | L171: 0 | M171: 11
A172: H1b | B172: 7 | C172: 0 | D172: 0 | E172: 0 | F172: 0 | G172: 0 | H172: 0 | I172: 0 | J172: 0 | K172: 0 | L172: 8 | M172: 74
A173: H1c | B173: 11 | C173: 4 | D173: 0 | E173: 0 | F173: 0 | G173: 0 | H173: 0 | I173: 0 | J173: 0 | K173: 0 | L173: 0 | M173: 10
A174: H2a | B174: 0 | C174: 0 | D174: 0 | E174: 0 | F174: 0 | G174: 0 | H174: 0 | I174: 0 | J174: 0 | K174: 0 | L174: 0 | M174: 2
A175: H2b | B175: 0 | C175: 0 | D175: 0 | E175: 0 | F175: 0 | G175: 0 | H175: 0 | I175: 0 | J175: 0 | K175: 0 | L175: 0 | M175: 0
A176: H2c | B176: 0 | C176: 0 | D176: 0 | E176: 0 | F176: 0 | G176: 0 | H176: 0 | I176: 0 | J176: 0 | K176: 0 | L176: 0 | M176: 7
A177: H2d | B177: 0 | C177: 0 | D177: 0 | E177: 0 | F177: 0 | G177: 0 | H177: 0 | I177: 0 | J177: 0 | K177: 0 | L177: 8 | M177: 20
A178: H3 | B178: 0 | C178: 0 | D178: 0 | E178: 0 | F178: 0 | G178: 0 | H178: 0 | I178: 0 | J178: 0 | K178: 0 | L178: 0 | M178: 0
A180: Nombre d’heures par mois concernant des températures inférieures à -5° C
A181: H1a | B181: 0 | C181: 0 | D181: 0 | E181: 0 | F181: 0 | G181: 0 | H181: 0 | I181: 0 | J181: 0 | K181: 0 | L181: 0 | M181: 6
A182: H1b | B182: 0 | C182: 0 | D182: 0 | E182: 0 | F182: 0 | G182: 0 | H182: 0 | I182: 0 | J182: 0 | K182: 0 | L182: 3 | M182: 46
A183: H1c | B183: 9 | C183: 0 | D183: 0 | E183: 0 | F183: 0 | G183: 0 | H183: 0 | I183: 0 | J183: 0 | K183: 0 | L183: 0 | M183: 0
A184: H2a | B184: 0 | C184: 0 | D184: 0 | E184: 0 | F184: 0 | G184: 0 | H184: 0 | I184: 0 | J184: 0 | K184: 0 | L184: 0 | M184: 0
A185: H2b | B185: 0 | C185: 0 | D185: 0 | E185: 0 | F185: 0 | G185: 0 | H185: 0 | I185: 0 | J185: 0 | K185: 0 | L185: 0 | M185: 0
A186: H2c | B186: 0 | C186: 0 | D186: 0 | E186: 0 | F186: 0 | G186: 0 | H186: 0 | I186: 0 | J186: 0 | K186: 0 | L186: 0 | M186: 3
A187: H2d | B187: 0 | C187: 0 | D187: 0 | E187: 0 | F187: 0 | G187: 0 | H187: 0 | I187: 0 | J187: 0 | K187: 0 | L187: 4 | M187: 11
A188: H3 | B188: 0 | C188: 0 | D188: 0 | E188: 0 | F188: 0 | G188: 0 | H188: 0 | I188: 0 | J188: 0 | K188: 0 | L188: 0 | M188: 0
A190: Nombre d’heures par mois concernant des températures inférieures à -6° C
A191: H1a | B191: 0 | C191: 0 | D191: 0 | E191: 0 | F191: 0 | G191: 0 | H191: 0 | I191: 0 | J191: 0 | K191: 0 | L191: 0 | M191: 0
A192: H1b | B192: 0 | C192: 0 | D192: 0 | E192: 0 | F192: 0 | G192: 0 | H192: 0 | I192: 0 | J192: 0 | K192: 0 | L192: 0 | M192: 35
A193: H1c | B193: 6 | C193: 0 | D193: 0 | E193: 0 | F193: 0 | G193: 0 | H193: 0 | I193: 0 | J193: 0 | K193: 0 | L193: 0 | M193: 0
A194: H2a | B194: 0 | C194: 0 | D194: 0 | E194: 0 | F194: 0 | G194: 0 | H194: 0 | I194: 0 | J194: 0 | K194: 0 | L194: 0 | M194: 0
A195: H2b | B195: 0 | C195: 0 | D195: 0 | E195: 0 | F195: 0 | G195: 0 | H195: 0 | I195: 0 | J195: 0 | K195: 0 | L195: 0 | M195: 0
A196: H2c | B196: 0 | C196: 0 | D196: 0 | E196: 0 | F196: 0 | G196: 0 | H196: 0 | I196: 0 | J196: 0 | K196: 0 | L196: 0 | M196: 2
A197: H2d | B197: 0 | C197: 0 | D197: 0 | E197: 0 | F197: 0 | G197: 0 | H197: 0 | I197: 0 | J197: 0 | K197: 0 | L197: 2 | M197: 9
A198: H3 | B198: 0 | C198: 0 | D198: 0 | E198: 0 | F198: 0 | G198: 0 | H198: 0 | I198: 0 | J198: 0 | K198: 0 | L198: 0 | M198: 0
A200: Nombre d’heures par mois concernant des températures inférieures à -7° C
A201: H1a | B201: 0 | C201: 0 | D201: 0 | E201: 0 | F201: 0 | G201: 0 | H201: 0 | I201: 0 | J201: 0 | K201: 0 | L201: 0 | M201: 0
A202: H1b | B202: 0 | C202: 0 | D202: 0 | E202: 0 | F202: 0 | G202: 0 | H202: 0 | I202: 0 | J202: 0 | K202: 0 | L202: 0 | M202: 27
A203: H1c | B203: 0 | C203: 0 | D203: 0 | E203: 0 | F203: 0 | G203: 0 | H203: 0 | I203: 0 | J203: 0 | K203: 0 | L203: 0 | M203: 0
A204: H2a | B204: 0 | C204: 0 | D204: 0 | E204: 0 | F204: 0 | G204: 0 | H204: 0 | I204: 0 | J204: 0 | K204: 0 | L204: 0 | M204: 0
A205: H2b | B205: 0 | C205: 0 | D205: 0 | E205: 0 | F205: 0 | G205: 0 | H205: 0 | I205: 0 | J205: 0 | K205: 0 | L205: 0 | M205: 0
A206: H2c | B206: 0 | C206: 0 | D206: 0 | E206: 0 | F206: 0 | G206: 0 | H206: 0 | I206: 0 | J206: 0 | K206: 0 | L206: 0 | M206: 0
A207: H2d | B207: 0 | C207: 0 | D207: 0 | E207: 0 | F207: 0 | G207: 0 | H207: 0 | I207: 0 | J207: 0 | K207: 0 | L207: 0 | M207: 6
A208: H3 | B208: 0 | C208: 0 | D208: 0 | E208: 0 | F208: 0 | G208: 0 | H208: 0 | I208: 0 | J208: 0 | K208: 0 | L208: 0 | M208: 0
A211: Zone sélectionnée : | B211: =ZoneSelect -> H1a
A213: Nb d'heures par mois inférieures à la température minimum pour la zone climatique concernée :
A214: 7 | B214: =VLOOKUP(ZoneSelect,TableHeures7,2,0) -> 657 | C214: =VLOOKUP(ZoneSelect,TableHeures7,3,0) -> 550 | D214: =VLOOKUP(ZoneSelect,TableHeures7,4,0) -> 360 | E214: =VLOOKUP(ZoneSelect,TableHeures7,5,0) -> 143 | F214: =VLOOKUP(ZoneSelect,TableHeures7,6,0) -> 31 | G214: =VLOOKUP(ZoneSelect,TableHeures7,7,0) -> 6 | H214: =VLOOKUP(ZoneSelect,TableHeures7,8,0) -> 0 | I214: =VLOOKUP(ZoneSelect,TableHeures7,9,0) -> 0 | J214: =VLOOKUP(ZoneSelect,TableHeures7,10,0) -> 0 | K214: =VLOOKUP(ZoneSelect,TableHeures7,11,0) -> 64 | L214: =VLOOKUP(ZoneSelect,TableHeures7,12,0) -> 367 | M214: =VLOOKUP(ZoneSelect,TableHeures7,13,0) -> 545
A215: 6 | B215: =VLOOKUP(ZoneSelect,TableHeures6,2,0) -> 599 | C215: =VLOOKUP(ZoneSelect,TableHeures6,3,0) -> 483 | D215: =VLOOKUP(ZoneSelect,TableHeures6,4,0) -> 285 | E215: =VLOOKUP(ZoneSelect,TableHeures6,5,0) -> 97 | F215: =VLOOKUP(ZoneSelect,TableHeures6,6,0) -> 13 | G215: =VLOOKUP(ZoneSelect,TableHeures6,7,0) -> 3 | H215: =VLOOKUP(ZoneSelect,TableHeures6,8,0) -> 0 | I215: =VLOOKUP(ZoneSelect,TableHeures6,9,0) -> 0 | J215: =VLOOKUP(ZoneSelect,TableHeures6,10,0) -> 0 | K215: =VLOOKUP(ZoneSelect,TableHeures6,11,0) -> 30 | L215: =VLOOKUP(ZoneSelect,TableHeures6,12,0) -> 294 | M215: =VLOOKUP(ZoneSelect,TableHeures6,13,0) -> 456
A216: 5 | B216: =VLOOKUP(ZoneSelect,TableHeures5,2,0) -> 514 | C216: =VLOOKUP(ZoneSelect,TableHeures5,3,0) -> 396 | D216: =VLOOKUP(ZoneSelect,TableHeures5,4,0) -> 201 | E216: =VLOOKUP(ZoneSelect,TableHeures5,5,0) -> 45 | F216: =VLOOKUP(ZoneSelect,TableHeures5,6,0) -> 5 | G216: =VLOOKUP(ZoneSelect,TableHeures5,7,0) -> 0 | H216: =VLOOKUP(ZoneSelect,TableHeures5,8,0) -> 0 | I216: =VLOOKUP(ZoneSelect,TableHeures5,9,0) -> 0 | J216: =VLOOKUP(ZoneSelect,TableHeures5,10,0) -> 0 | K216: =VLOOKUP(ZoneSelect,TableHeures5,11,0) -> 7 | L216: =VLOOKUP(ZoneSelect,TableHeures5,12,0) -> 227 | M216: =VLOOKUP(ZoneSelect,TableHeures5,13,0) -> 363
A217: 4 | B217: =VLOOKUP(ZoneSelect,TableHeures4,2,0) -> 396 | C217: =VLOOKUP(ZoneSelect,TableHeures4,3,0) -> 312 | D217: =VLOOKUP(ZoneSelect,TableHeures4,4,0) -> 140 | E217: =VLOOKUP(ZoneSelect,TableHeures4,5,0) -> 16 | F217: =VLOOKUP(ZoneSelect,TableHeures4,6,0) -> 2 | G217: =VLOOKUP(ZoneSelect,TableHeures4,7,0) -> 0 | H217: =VLOOKUP(ZoneSelect,TableHeures4,8,0) -> 0 | I217: =VLOOKUP(ZoneSelect,TableHeures4,9,0) -> 0 | J217: =VLOOKUP(ZoneSelect,TableHeures4,10,0) -> 0 | K217: =VLOOKUP(ZoneSelect,TableHeures4,11,0) -> 2 | L217: =VLOOKUP(ZoneSelect,TableHeures4,12,0) -> 151 | M217: =VLOOKUP(ZoneSelect,TableHeures4,13,0) -> 274
A218: 3 | B218: =VLOOKUP(ZoneSelect,TableHeures3,2,0) -> 285 | C218: =VLOOKUP(ZoneSelect,TableHeures3,3,0) -> 212 | D218: =VLOOKUP(ZoneSelect,TableHeures3,4,0) -> 88 | E218: =VLOOKUP(ZoneSelect,TableHeures3,5,0) -> 3 | F218: =VLOOKUP(ZoneSelect,TableHeures3,6,0) -> 0 | G218: =VLOOKUP(ZoneSelect,TableHeures3,7,0) -> 0 | H218: =VLOOKUP(ZoneSelect,TableHeures3,8,0) -> 0 | I218: =VLOOKUP(ZoneSelect,TableHeures3,9,0) -> 0 | J218: =VLOOKUP(ZoneSelect,TableHeures3,10,0) -> 0 | K218: =VLOOKUP(ZoneSelect,TableHeures3,11,0) -> 0 | L218: =VLOOKUP(ZoneSelect,TableHeures3,12,0) -> 86 | M218: =VLOOKUP(ZoneSelect,TableHeures3,13,0) -> 219
A219: 2 | B219: =VLOOKUP(ZoneSelect,TableHeures2,2,0) -> 141 | C219: =VLOOKUP(ZoneSelect,TableHeures2,3,0) -> 133 | D219: =VLOOKUP(ZoneSelect,TableHeures2,4,0) -> 55 | E219: =VLOOKUP(ZoneSelect,TableHeures2,5,0) -> 0 | F219: =VLOOKUP(ZoneSelect,TableHeures2,6,0) -> 0 | G219: =VLOOKUP(ZoneSelect,TableHeures2,7,0) -> 0 | H219: =VLOOKUP(ZoneSelect,TableHeures2,8,0) -> 0 | I219: =VLOOKUP(ZoneSelect,TableHeures2,9,0) -> 0 | J219: =VLOOKUP(ZoneSelect,TableHeures2,10,0) -> 0 | K219: =VLOOKUP(ZoneSelect,TableHeures2,11,0) -> 0 | L219: =VLOOKUP(ZoneSelect,TableHeures2,12,0) -> 56 | M219: =VLOOKUP(ZoneSelect,TableHeures2,13,0) -> 157
A220: 1 | B220: =VLOOKUP(ZoneSelect,TableHeures1,2,0) -> 63 | C220: =VLOOKUP(ZoneSelect,TableHeures1,3,0) -> 67 | D220: =VLOOKUP(ZoneSelect,TableHeures1,4,0) -> 19 | E220: =VLOOKUP(ZoneSelect,TableHeures1,5,0) -> 0 | F220: =VLOOKUP(ZoneSelect,TableHeures1,6,0) -> 0 | G220: =VLOOKUP(ZoneSelect,TableHeures1,7,0) -> 0 | H220: =VLOOKUP(ZoneSelect,TableHeures1,8,0) -> 0 | I220: =VLOOKUP(ZoneSelect,TableHeures1,9,0) -> 0 | J220: =VLOOKUP(ZoneSelect,TableHeures1,10,0) -> 0 | K220: =VLOOKUP(ZoneSelect,TableHeures1,11,0) -> 0 | L220: =VLOOKUP(ZoneSelect,TableHeures1,12,0) -> 30 | M220: =VLOOKUP(ZoneSelect,TableHeures1,13,0) -> 103
A221: 0 | B221: =VLOOKUP(ZoneSelect,TableHeures0,2,0) -> 41 | C221: =VLOOKUP(ZoneSelect,TableHeures0,3,0) -> 29 | D221: =VLOOKUP(ZoneSelect,TableHeures0,4,0) -> 7 | E221: =VLOOKUP(ZoneSelect,TableHeures0,5,0) -> 0 | F221: =VLOOKUP(ZoneSelect,TableHeures0,6,0) -> 0 | G221: =VLOOKUP(ZoneSelect,TableHeures0,7,0) -> 0 | H221: =VLOOKUP(ZoneSelect,TableHeures0,8,0) -> 0 | I221: =VLOOKUP(ZoneSelect,TableHeures0,9,0) -> 0 | J221: =VLOOKUP(ZoneSelect,TableHeures0,10,0) -> 0 | K221: =VLOOKUP(ZoneSelect,TableHeures0,11,0) -> 0 | L221: =VLOOKUP(ZoneSelect,TableHeures0,12,0) -> 19 | M221: =VLOOKUP(ZoneSelect,TableHeures0,13,0) -> 70
A222: -1 | B222: =VLOOKUP(ZoneSelect,TableHeures_1,2,0) -> 32 | C222: =VLOOKUP(ZoneSelect,TableHeures_1,3,0) -> 14 | D222: =VLOOKUP(ZoneSelect,TableHeures_1,4,0) -> 2 | E222: =VLOOKUP(ZoneSelect,TableHeures_1,5,0) -> 0 | F222: =VLOOKUP(ZoneSelect,TableHeures_1,6,0) -> 0 | G222: =VLOOKUP(ZoneSelect,TableHeures_1,7,0) -> 0 | H222: =VLOOKUP(ZoneSelect,TableHeures_1,8,0) -> 0 | I222: =VLOOKUP(ZoneSelect,TableHeures_1,9,0) -> 0 | J222: =VLOOKUP(ZoneSelect,TableHeures_1,10,0) -> 0 | K222: =VLOOKUP(ZoneSelect,TableHeures_1,11,0) -> 0 | L222: =VLOOKUP(ZoneSelect,TableHeures_1,12,0) -> 11 | M222: =VLOOKUP(ZoneSelect,TableHeures_1,13,0) -> 56
A223: -2 | B223: =VLOOKUP(ZoneSelect,TableHeures_2,2,0) -> 15 | C223: =VLOOKUP(ZoneSelect,TableHeures_2,3,0) -> 0 | D223: =VLOOKUP(ZoneSelect,TableHeures_2,4,0) -> 0 | E223: =VLOOKUP(ZoneSelect,TableHeures_2,5,0) -> 0 | F223: =VLOOKUP(ZoneSelect,TableHeures_2,6,0) -> 0 | G223: =VLOOKUP(ZoneSelect,TableHeures_2,7,0) -> 0 | H223: =VLOOKUP(ZoneSelect,TableHeures_2,8,0) -> 0 | I223: =VLOOKUP(ZoneSelect,TableHeures_2,9,0) -> 0 | J223: =VLOOKUP(ZoneSelect,TableHeures_2,10,0) -> 0 | K223: =VLOOKUP(ZoneSelect,TableHeures_2,11,0) -> 0 | L223: =VLOOKUP(ZoneSelect,TableHeures_2,12,0) -> 5 | M223: =VLOOKUP(ZoneSelect,TableHeures_2,13,0) -> 46
A224: -3 | B224: =VLOOKUP(ZoneSelect,TableHeures_3,2,0) -> 3 | C224: =VLOOKUP(ZoneSelect,TableHeures_3,3,0) -> 0 | D224: =VLOOKUP(ZoneSelect,TableHeures_3,4,0) -> 0 | E224: =VLOOKUP(ZoneSelect,TableHeures_3,5,0) -> 0 | F224: =VLOOKUP(ZoneSelect,TableHeures_3,6,0) -> 0 | G224: =VLOOKUP(ZoneSelect,TableHeures_3,7,0) -> 0 | H224: =VLOOKUP(ZoneSelect,TableHeures_3,8,0) -> 0 | I224: =VLOOKUP(ZoneSelect,TableHeures_3,9,0) -> 0 | J224: =VLOOKUP(ZoneSelect,TableHeures_3,10,0) -> 0 | K224: =VLOOKUP(ZoneSelect,TableHeures_3,11,0) -> 0 | L224: =VLOOKUP(ZoneSelect,TableHeures_3,12,0) -> 2 | M224: =VLOOKUP(ZoneSelect,TableHeures_3,13,0) -> 31
... 13 more rows

Sheet echangeurs (hidden)
A1: Pincement Ballon à serpentin
A3: m2/kW | B3: ΔT | C3: equiv echangeur à plaques
A4: 0.22 | B4: 9.5 | C4: =A4/2 -> 0.11
A5: 0.23 | B5: 8.5 | C5: =A5/2 -> 0.115
A6: 0.24 | B6: 7.5 | C6: 0.12
A7: 0.25 | B7: 6.5 | C7: 0.125
A8: 0.26 | B8: 5.5 | C8: 0.13
A9: 0.27 | B9: 4.5 | C9: 0.135
A10: 0.28 | B10: 3.5 | C10: 0.14
A11: 0.29 | B11: 2.5 | C11: 0.145
A12: 0.3 | B12: 1.5 | C12: 0.15
A13: 0.31 | B13: 0.5 | C13: 0.155
A16: Volume d'échange par m2
A17: 60 | B17: l/m2
A20: m2/kW | B20: ΔT
A21: 0.11 | B21: 9.5
A22: 0.115 | B22: 8.5
A23: 0.12 | B23: 7.5
A24: 0.125 | B24: 6.5
A25: 0.13 | B25: 5.5
A26: 0.135 | B26: 4.5
A27: 0.14 | B27: 3.5
A28: 0.145 | B28: 2.5
A29: 0.15 | B29: 1.5
A30: 0.155 | B30: 0.5

Sheet LISTES (hidden)
A1: Récupération de chaleur
A2: Aucune
A3: VMC
A4: Fumées de chaudières
A6: Liste_Echangeurs
A7: Ballon à serpentin
A8: Echangeur à plaques
A9: Ballon en bain-marie
A11: Liste
A12: Oui
A13: Non

Sheet ConditionsTests (hidden)
A1: Conditions de tests communes à la EN 255-3 et la pr EN 16147 | F1: Conditions de tests communes à la EN 255-3 et la pr EN 16147 | I1: Calcul des coeff à appliquer au COP nominal HP pour obtenir le COP du maintien en température du ballon avec 5K d'hystérisis
I2: COP théo Carnot consigne 50°C | M2: COP théo Carnot consigne 55°C
A3: Technologie | B3: T source froide | C3: T ambiance ballon | F3: Technologie | G3: T source froide | I3: PrEN16147 | J3: Hystérisis 5K | K3: Coeff COP | M3: PrEN16147 | N3: Hystérisis 5K | O3: Coeff COP
A4: AIR EXTERIEUR/EAU | B4: 7 | C4: 10 | F4: AIR EXTERIEUR/EAU | G4: 7 | I4: =((50+10)/2+273)/((50+10)/2-$B4) -> 13.17391304 | J4: =((50+45)/2+273)/((50+45)/2-$B4) -> 7.913580247 | K4: =J4/I4 -> 0.6007008108 | M4: =((55+10)/2+273)/((55+10)/2-$B4) -> 11.98039216 | N4: =((55+50)/2+273)/((55+50)/2-$B4) -> 7.153846154 | O4: =N4/M4 -> 0.597129548
